Workbook

Sheet 時間
B1: 11:00 | C1: 12:00 | D1: 1:00 | H1: フランス軍 | I1: 連合軍 | K1: =天候!A20 -> LOSの最大HEX | L1: =天候!F20 -> 無限
A2: 10:00 | B2: :00 | E2: 2:00 | G2: 指揮 | K2: =天候!A21 -> 散開隊形の射撃射程HEX | L2: =天候!F21 -> 2
A3: 9:00 | B3: :20 | E3: 3:00 | G3: 騎兵突撃 | K3: =天候!A22 -> 騎兵突撃 | L3: =天候!F22 -> 可能
A4: 8:00 | B4: :40 | E4: 4:00 | G4: 移動 | K4: =天候!A23 -> 騎兵突撃のボーナス | L4: =天候!F23 -> 移動力＋５
B5: 7:00 | C5: 6:00 | D5: 5:00 | G5: 敵軍の防御射撃 | K5: =天候!A24 -> 歩兵射撃の可否 補正(%) | L5: =天候!F24 -> 0
A6: シート保護中 | D6: 午後1時は13と入力 | G6: 自軍の攻勢射撃 | K6: =天候!A25 -> 砲兵射撃の可否 補正(%) | L6: =天候!F25 -> 0
A7: 時間帯 | B7: 天候 | C7: 場所 | D7: 開始時 | E7: 開始分 | G7: 白兵戦 | K7: =天候!A26 -> 歩兵移動力補正(%) | L7: =天候!F26 -> 0
A8: 昼 | B8: 晴 | C8: =IF(B8="雷雨",天候変化!N31,"") ->  | D8: 9 | E8: 0 | G8: 回復 | K8: =天候!A27 -> 騎兵移動力補正(%) | L8: =天候!F27 -> 0
K9: =天候!A28 -> 砲兵移動力補正(%) | L9: =天候!F28 -> 0
A13: フランス軍増援
A14: 連合軍増援

Sheet 移動
B1: 移動力 | F1: 移動力
B2: 印刷値 | C2: 補正後 | F2: 印刷値 | G2: 補正後
A3: 歩兵 | B3: 4 | C3: =B3*(100+天候!E$26)/100 -> 4 | E3: 砲兵 | F3: 4 | G3: =F3*(100+天候!E$28)/100 -> 4
B4: 5 | C4: =B4*(100+天候!E$26)/100 -> 5 | F4: 5 | G4: =F4*(100+天候!E$28)/100 -> 5
B5: 6 | C5: =B5*(100+天候!E$26)/100 -> 6 | F5: 6 | G5: =F5*(100+天候!E$28)/100 -> 6
B6: 7 | C6: =B6*(100+天候!E$26)/100 -> 7 | F6: 7 | G6: =F6*(100+天候!E$28)/100 -> 7
B7: 8 | C7: =B7*(100+天候!E$26)/100 -> 8 | F7: 8 | G7: =F7*(100+天候!E$28)/100 -> 8
B8: 9 | C8: =B8*(100+天候!E$26)/100 -> 9 | F8: 9 | G8: =F8*(100+天候!E$28)/100 -> 9
F9: 10 | G9: =F9*(100+天候!E$28)/100 -> 10
A10: 騎兵 | B10: 7 | C10: =B10*(100+天候!E$27)/100 -> 7 | F10: 11 | G10: =F10*(100+天候!E$28)/100 -> 11
B11: 8 | C11: =B11*(100+天候!E$27)/100 -> 8 | F11: 12 | G11: =F11*(100+天候!E$28)/100 -> 12
B12: 9 | C12: =B12*(100+天候!E$27)/100 -> 9
B13: 10 | C13: =B13*(100+天候!E$27)/100 -> 10
B14: 11 | C14: =B14*(100+天候!E$27)/100 -> 11
B15: 12 | C15: =B15*(100+天候!E$27)/100 -> 12
B16: 13 | C16: =B16*(100+天候!E$27)/100 -> 13
B17: 14 | C17: =B17*(100+天候!E$27)/100 -> 14
B18: 15 | C18: =B18*(100+天候!E$27)/100 -> 15
B19: 16 | C19: =B19*(100+天候!E$27)/100 -> 16

Sheet 射撃
B1: 目標 | C1: 特殊補正 | D1: 備考 | F1: 計算用作業領域
A2: 地形防御値 | B2: 23 | D2: 特殊補正欄：歩兵射撃で目標が胸当てを付けている胸甲騎兵、カラビニエ場合に1、それ以外は空白 | F2: =IF(C4<>1,0,ROUNDUP((B3-2)*4.5,0)) -> 5 | G2: =IF(C2<>1,0,6) -> 0 | H2: 左：砲兵目標の密集補正、右：胸当て補正
A3: 目標戦力数 | B3: 3 | D3: 特殊補正欄：指揮官が超有能な指揮官なら下表の値を入力、それ以外は空白 | F3: =IF(B3<10,0,B3-9) -> 0 | G3: 0 | H3: 左：歩兵・騎兵の密集目標補正、右：超有能指揮官の補正
A4: 隣接補正 | C4: 1 | D4: 目標欄：砲兵の目標が隣接なら1、それ以外は空白。特殊補正欄：砲兵が目標の場合に１、それ以外は空白。 | F4: 補正後＝ | G4: 1.50999999 | H4: 散弾射撃時の射撃比
B6: 射撃側１ | C6: 射撃側２ | D6: 単独か大砲の場合は射撃側２の射撃値と戦力数を０か空白
A7: 射撃値 | B7: 12 | C7: 0 | D7: 縦隊、一般隊形、大隊密集、師団密集、混乱または砲兵の場合
A8: 戦力数 | B8: 0 | C8: 0 | D8: 横隊、散開隊形、方陣の場合
A9: 掛算係数 | B9: 1 | C9: 1 | D9: 上記隊形のチャートの値を参照、上記以外は１
A10: 割算係数 | B10: 1 | C10: 1 | D10: 方陣は３、混乱は２、その他、何もなければ１ | F10: =IF(B10<>0,(B7+B8*B9)/B10,0) -> 12 | G10: =IF(C10<>0,(C7+C8*C9)/C10,0) -> 0 | H10: 個別射撃力
A11: 指揮官修正（モラル値） | D11: 一緒なら印刷値、隣接HEXに居れば印刷値÷２（切捨て） | F11: =ROUNDDOWN(B12/10,0)*6+(B12-ROUNDDOWN(B12/10,0)*10)-B14-B11-F13 -> 16 | G11: =ROUNDDOWN(C12/10,0)*6+(C12-ROUNDDOWN(C12/10,0)*10)-C14-C11-G13 -> 12 | H11: 個別モラル
A12: ユニットモラル値 | B12: 24 | C12: 16 | D12: モラル補正しない場合は0か空白 | F12: =(F11*F10+G11*G10)/(F10+G10) -> 16 | H12: 比例配分によるモラル合計
A13: 50%以上戦力損失 | D13: 損失ありなら１、その他は０か空白 | F13: =IF(B13=1,-6,0) -> 0 | G13: =IF(C13=1,-6,0) -> 0 | H13: 50%以上戦力損失によるモラル補正
A14: 部隊モラル修正 | D14: 軍団・師団・旅団などの管理単位毎の修正値（マイナス入力） | F14: 0.06527777778 | G14: 0.08541459495 | H14: 補給失敗率（左）と乱数（右）
A15: 英国ライフル中隊修正 | D15: 射撃側に英国ライフル中隊が居る場合は1、居ない場合は空白 | F15: セル色＝ | G15: 10086143 | H15: (注)マクロが動作すると、再度乱数が発生して上書される。
A16: 大砲の種類（左）と国種別（右） | B16: 4 | C16: 1 | D16: 射撃速度の反映を行う場合は、下記の数値と下表の国種別を入力。それ以外は空白 | F16: 乱数２＝ | G16: =士気2!J39 -> 20 | H16: ：射撃結果判定用（１〜３６）
D17: 1:12pdr, 2:9pdr, 3:8pdr, 4:6pdr, 5:6pdr騎馬, 6:4pdr, 7:3pdr | F17: =1+((天候!E24)/100) -> 1 | G17: =1+((天候!E25)/100) -> 1 | H17: 歩兵と砲兵の天候補正値
A18: 射撃側の兵科 | B18: 歩兵 | C18: 砲兵 | F18: =ROUNDDOWN((18-$F$12)/3,0)+$F$3-G2 -> 0 | G18: =ROUNDDOWN((15-$F$12)*2/3,0)+F2+F3+G3 -> 5 | H18: モラルと密集目標によるダイス修正値
A19: 射撃比 | B19: =($F$10+$G$10)*F17/$B$2 -> 0.5217391304 | C19: =($F$10+$G$10)*G17/$B$2 -> 0.5217391304 | D19: 時間帯・天候による補正 | F19: 乱数４＝ | G19: =士気2!J41 -> 5 | H19: ：死傷種別用（１〜５）
A20: ダイス修正値 | B20: =IF($B$12<>0,F18,$F$3) -> 0 | C20: =IF($B$12<>0,G18,$F$3) -> 5 | F20: 乱数３＝ | G20: =士気2!J40 -> 3 | H20: ：脚負傷用（２〜１２）
A21: 射撃による損失 | B21: 0 | C21: 1 | D21: 判定後は色が変わる | F21: 乱数１＝ | G21: =士気2!J38 -> 2 | H21: ：腕負傷用（１〜６）
A22: 指揮官の死傷 | B22: なし | F22: 乱数５＝ | G22: =士気2!J42 -> 31 | H22: ：射撃結果判定用２回目（１〜３６）
A23: 射撃による損失２回目 | B23: － | C23: － | D23: 軽い大砲の２回目の射撃用 | F23: 乱数６＝ | G23: =士気2!J43 -> 0.7980312646 | H23: ：０〜１の乱数
A24: 指揮官の死傷２回目 | B24: なし | D24: なお、大砲は１ヶ中隊毎に判定する。（２ヶ以上は対応していない） | F24: 乱数７＝ | G24: =士気2!J44 -> 5 | H24: ：死傷種別用２回目（１〜５）
F25: 乱数８＝ | G25: =士気2!J45 -> 4 | H25: ：腕負傷用２回目（１〜６）
F26: 乱数９＝ | G26: =士気2!J46 -> 8 | H26: ：脚負傷用２回目（２〜１２）

Sheet 白兵
B1: 攻撃側１ | C1: 攻撃側２ | D1: 防御側１ | E1: 防御側２ | F1: 1:縦隊、2:横隊、3:散開隊形、4:一般隊形、5:行軍隊形、 6:方陣、7:大隊密集、8:師団密集、9:牽引隊形、 10:展開隊形、11:混乱、12:潰走 | H1: 計算用作業領域
A2: 白兵戦値 | B2: 15 | D2: 14
A3: 初期戦力数 | B3: 5 | D3: 6 | H3: 乱数１＝ | I3: =士気2!J38 -> 2 | J3: ：死傷種別用（１〜６）
A4: 参加戦力数 | B4: 5 | D4: 5 | F4: 単独の場合は攻撃側２、防御側２の現在戦力数を０か空白 | H4: 乱数２＝ | I4: =士気2!J39 -> 20 | J4: ：白兵戦結果判定用（１〜３６）
A5: 現在戦力数 | F5: ワイン畑など参加戦力数に制限がある場合に現在の戦力を入力。制限がない場合は空白。 | H5: =IF(B5="",B4,B5) -> 5 | I5: =IF(C5="",C4,C5) -> 0 | J5: 5 | K5: 0 | L5: 参加戦力のモラル補正
A6: 兵科 | B6: 2 | D6: 1 | F6: 歩兵は1、 騎兵は2、 砲兵は3 | H6: =IF(B3/2<H5,0,-6) -> 0 | I6: =IF(C3/2<I5,0,-6) -> -6 | J6: 0 | K6: -6 | L6: 50%損失判定
A7: 隊形 | B7: 1 | D7: 1 | F7: 上記の種別参照 | H7: =ROUNDDOWN(B15/10,0)*6+(B15-ROUNDDOWN(B15/10,0)*10)-H6-B16-B14*3 -> 19 | I7: =ROUNDDOWN(C15/10,0)*6+(C15-ROUNDDOWN(C15/10,0)*10)-I6-C16-C14*3 -> 6 | J7: =ROUNDDOWN(D15/10,0)*6+(D15-ROUNDDOWN(D15/10,0)*10)-J6-D16-D14*3 -> 10 | K7: =ROUNDDOWN(E15/10,0)*6+(E15-ROUNDDOWN(E15/10,0)*10)-K6-E16-E14*3 -> 6 | L7: 個別モラル
A8: 騎兵の疲労状態 | B8: 1 | F8: 通常は1、 疲労は2、 損耗は3、 騎兵以外は空白 | I8: =(H7*B4+I7*C4)/(B4+C4) -> 19 | K8: =(J7*D4+K7*E4)/(D4+E4) -> 10 | L8: 比例配分によるモラル合計
A9: 防御側から見た攻撃方向 | F9: 側面は1、 背面は2、 正面は空白（防御側が方陣なら自動的に空白） | H9: =ROUNDDOWN((K8-I8)/3,0) -> -3 | L9: モラルによるダイス補正
A10: 攻撃を緩和する地形 | F10: 小川を渡る攻撃なら1、 その他は空白 | H10: =IF(B6=2,IF(B12=3,ROUNDUP(B13*B4/B3,0),0),0) -> 0 | I10: =IF(C6=2,IF(C12=3,ROUNDUP(C13*C4/C3,0),0),0) -> 0 | J10: =IF(D6=2,IF(D12=3,ROUNDUP(D13*D4/D3,0),0),0) -> 0 | K10: =IF(E6=2,IF(E12=3,ROUNDUP(E13*E4/E3,0),0),0) -> 0 | M10: 槍ボーナス減少
A11: 騎兵突撃 | F11: 騎兵突撃なら1、 その他は空白 | H11: =IF(B7=2,H10*2,H10) -> 0 | I11: =IF(C7=2,I10*2,I10) -> 0 | J11: =IF(D7=2,J10*2,J10) -> 0 | K11: =IF(E7=2,K10*2,K10) -> 0 | M11: 横隊補正
A12: 騎兵種別 | B12: 4 | F12: 胸甲騎兵、カラビニエなら1、その他重騎兵なら4、 軽騎兵なら2、 槍騎兵なら3、 その他は空白 | H12: =IF(B3<>"",B2*B4/B3+H11,0) -> 15 | I12: =IF(C3<>"",C2*C4/C3+I11,0) -> 0 | J12: 11.66666667 | K12: 0 | L12: =(H12+I12)/(J12+K12) -> 1.285714286 | M12: 基本
A13: 槍ボーナス | F13: 槍騎兵以外は空白 | H13: 15 | I13: 0 | J13: 11.66666698 | K13: 0 | L13: 1.285714251 | M13: 隊形補正
A14: 指揮官修正（白兵戦値） | F14: 一緒なら印刷値、隣接HEXに居れば印刷値÷２（切捨て） | H14: 15 | I14: 0 | J14: 11.66666698 | K14: 0 | L14: 1.285714251 | M14: 疲労補正
A15: ユニットモラル値 | B15: 31 | D15: 24 | F15: モラル補正しない場合は0か空白 | H15: 15 | I15: 0 | J15: 11.66666698 | K15: 0 | L15: 1.285714251 | M15: 突撃補正
A16: 部隊モラル修正 | D16: 6 | F16: 軍団・師団・旅団などの管理単位毎の修正値（マイナス入力） | H16: 15 | I16: 0 | J16: =J15 -> 11.66666698 | K16: =K15 -> 0 | L16: 1.285714251 | M16: 地形補正
H17: 15 | I17: 0 | J17: 11.66666698 | K17: 0 | L17: 1.285714251 | M17: 方陣補正
H18: 15 | I18: 0 | J18: 11.66666698 | K18: 0 | L18: 1.285714251 | M18: 攻撃方向補正
A19: 戦力比 | B19: 1.285714269 | H19: 15 | I19: 0 | J19: 11.66666698 | K19: 0 | L19: 1.285714251 | M19: 重騎兵補正
A20: ダイス修正値 | B20: -3
B21: 攻撃側 | D21: 防御側
A22: 白兵戦結果 | B22: 0 | D22: 0 | F22: 判定後は色が変わる
A23: 指揮官の死傷

Sheet 方陣
L1: 計算領域
F2: 判定後は色が変わる
A5: 部隊名称 | B5: フランス軍 | D5: ロシア軍
A6: 隊形 | D6: 1 | H6: 縦隊なら1、 横隊なら2、 判定不要なら空白を入力 | L6: 1 | M6: 2 | N6: 1 | O6: 2 | P6: 2 | Q6: 1
A7: 距離(HEX) | D7: 2 | H7: 騎兵までの距離を入力 | L7: 4 | M7: 3 | N7: 2 | O7: 1 | P7: 4 | Q7: 1
A8: 歩兵種別 | H8: 下段の表に該当する場合は数値を入力、なければ空白 | L8: 3 | M8: -6 | N8: 3 | O8: -6 | P8: -2 | Q8: 2
A9: 騎兵種別 | H9: 軽騎兵なら1、 槍騎兵なら2を入力、それ以外は空白 | L9: 3 | M9: 0 | N9: 3 | O9: -3 | P9: 6 | Q9: 9
A10: 指揮官 | H10: 指揮官が居る場合は1、 居ない場合は空白 | L10: -6 | M10: -6 | N10: -12 | O10: -9 | P10: 0 | Q10: -4
A11: 士気レベル | D11: 1 | H11: 所属する部隊の士気レベルを0〜3で入力 | L11: 9 | M11: -3 | N11: 3 | O11: 0 | P11: 3 | Q11: 8
A12: 判定結果 | D12: 混乱 | L12: 26 | M12: 10 | N12: 15 | O12: 28 | P12: 9 | Q12: 30
L13: 52 | M13: 24 | N13: 33 | O13: 54 | P13: 23 | Q13: 56
A14: 歩兵種別 | B14: フランス軍 | D14: ロシア軍
A15: 1 | B15: 軽歩兵 | D15: 軽歩兵
A16: 2 | B16: 同盟兵 | D16: 擲弾兵
A17: 3 | B17: 擲弾兵 | D17: 親衛隊
A18: 4 | B18: 親衛隊
A19: 5

Sheet 追撃
B1: 騎兵１ | C1: 騎兵２ | F1: 計算用作業領域
A2: 戦力数 | B2: 10 | D2: 単独の場合は騎兵２の戦力数を０か空白 | F2: =(0.75*(F8*B2*F3+G8*C2*G3)) -> 0.6804
A3: モラル値 | B3: 26 | F3: =IF(B7>10,10,B7) -> 7 | G3: =IF(C7>10,10,C7) -> 0 | H3: 移動力補正（１０以下）
A4: 50%以上戦力損失 | D4: 損失ありなら１、その他は０ | F4: =IF(B4=1,-6,0) -> 0 | G4: =IF(C4=1,-6,0) -> 0 | H4: 50%以上戦力損失によるモラル補正
A5: 指揮官修正（騎兵値） | F5: 乱数３＝ | G5: =士気2!J40 -> 3 | H5: ：サーベル命中用（２〜１２）
A6: 特別ボーナス | D6: ヴィストラ槍騎兵は１２、ポーランド槍騎兵は６、その他は０ | F6: =G5 -> 3 | G6: =F6 -> 3 | H6: ２つダイス値の合計
A7: 移動力の残数 | B7: 7 | D7: 突撃時は５加算（但し、MAX10) | F7: =ROUNDDOWN(B3/10,0)*6+(B3-ROUNDDOWN(B3/10,0)*10) -> 18 | G7: =ROUNDDOWN(C3/10,0)*6+(C3-ROUNDDOWN(C3/10,0)*10) -> 0 | H7: 個別モラル
A8: 追撃戦果(step数） | B8: 1 | D8: 判定後は色が変わる | F8: =(F6+(18-F7+F4)/3+B5+B6)/100*$F9 -> 0.01296 | G8: =(G6+(18-G7+G4)/3+C5+C6)/100*$F9 -> 0.03888 | H8: Hitする確率
F9: 0.432 | H9: 調整パラメータ
F12: 騎兵の速度を約12km/hとして、1HEX(100m)を通過する時間は30秒。
A13: 支援ツールで判定しない場合に使う賽の目 | F13: １０分間（１ターンの１／２で自軍の割合）の平均で考えて、30秒でサーベルを振れる回数は、約１〜２回。
A14: サイコロ１ヶ用（１〜６） | B14: 6 | F14: Hitする確率をＮとして、１．５×Ｎが１人１ＨＥＸでの成果。
A15: サイコロ２ヶ用（１１〜６６） | B15: 16 | F15: 騎兵は歩兵に比べて1/2の人数で１戦力なので、１．５Ｎ×戦力数÷２が１HEX当たり歩兵に与える損失。
F16: 移動できるＨＥＸ数を掛けて０．７５Ｎ×戦力数×移動力残数が歩兵に与える合計損失。
F17: Hitする確率をＮは、ダイスの目、モラル値、指揮官修正、特別ボーナスを考えて、以下とする。
F18: Ｎ＝（ダイスの目＋（１８ーモラル値）÷３＋指揮官修正＋特別ボーナス）÷１００×α
F20: α＝調整パラメータで、下記を参考し決定。
F21: Albuera
F22: 1st Vistula Lancer | H22: morale=14, strength=12
F23: 2nd Hussar | H23: morale=15, strength=7
F24: が英国大隊約1300名を５分間で損失させた。
F25: 10HEX移動には5分間必要（12km/hの速度で）。

Sheet 士気
K1: 作業領域
F2: 判定後は色が変わる | K2: 11 | L2: 5 | M2: データ数
K3: 3 | L3: 1 | M3: 部隊数
A4: フランス軍 | F4: 連合軍
A5: 部隊名称 | B5: 離脱大隊数 | C5: 士気レベル | D5: 部隊モラル | F5: 部隊名称 | G5: =B5 -> 離脱大隊数 | H5: 士気レベル | I5: 部隊モラル
A6: Legrand師団 | C6: 0 | D6: 0 | F6: ロシア軍 | G6: 12 | H6: 3 | I6: -8
A7: Oudinoｔ師団 | C7: 0 | D7: 0
A8: Suchet師団 | C8: 0 | D8: 0

Sheet 士気2
C1: 現在フェーズ | D1: 騎兵突撃 | I1: 計算用作業領域 | K1: 1 | L1: フェーズ番号
C2: 兵科 | D2: 歩兵 | E2: 騎兵 | F2: 砲兵 | G2: 1:縦隊、2:横隊、3:散開隊形、4:一般隊形、5:行軍隊形、 6:方陣、7:大隊密集、8:師団密集、9:牽引隊形、 10:展開隊形、11:混乱、12:潰走 | K2: 1 | L2: 軍の番号
A3: 全てのフェーズ共通
B4: 基本補正
C5: 隊形 | E5: 1 | G5: 上記の種別参照。 | I5: 0 | J5: 13 | K5: 0 | L5: 基本修正最終
C6: ユニットモラル値 | E6: 21 | G6: 印刷値（26ならそのまま入力） | I6: 0 | J6: 13 | K6: 0
C7: 50%以上戦力損失 | G7: 損失ありなら１、その他は空白 | I7: 0 | J7: 0 | K7: 0
C8: 指揮官修正（モラル値） | G8: 一緒なら印刷値、隣接HEXに居れば印刷値÷２（切捨て） | I8: 0 | J8: 13 | K8: 0
C9: 部隊モラル修正 | G9: 軍団・師団・旅団などの管理単位毎の修正値（マイナス入力） | I9: 0 | J9: 13 | K9: 0
B10: 特殊ルールの補正 | G10: 全てのフェーズに適用する特殊補正（Vauchampsの奇襲表などの補正） | I10: 0 | J10: 13 | K10: 0
A11: 指揮フェーズ以外共通
B12: 騎兵と他の兵科との混在補正 | G12: （注）この判定をしない場合には、判定対象の兵科を全て空白にする
C13: 判定対象 | G13: 判定する兵科と騎兵に1、それ以外は空白
B14: 状態・国籍の混在補正 | G14: （注）混在（通過を含む）がなければ下記の段は全て空白
C15: 混在相手の部隊が混乱状態 | G15: 該当する場合に1、その他は空白。判定する部隊が通常状態の場合のみ。
C16: 混在相手の部隊が潰走状態 | G16: 判定する部隊が通常か混乱の場合のみ。
C17: 混在相手の国籍が違う
A18: 騎兵突撃、白兵戦フェーズ特有 | G18: （注）騎兵突撃では、突撃を受ける歩兵・砲兵の場合に入力する。
B19: 共通 | G19: 騎兵の場合は何も入力しない（補正は行わない）。
C20: 判定する側 | G20: 攻撃側は1、 防御側は2、 その他（判定しない時）は空白 | I20: 0 | L20: 判定する側
C21: 攻撃側戦力 | G21: （注）砲兵は攻撃側に入力できない（自動的に空白） | L21: 戦力比補正値
C22: 防御側戦力 | G22: 攻撃側、防御側とも参加する兵科の欄に戦力を入力 | L22: 戦力比補正後
B23: 騎兵突撃フェーズ特有（突撃を受ける側の判定） | G23: （注）歩兵・砲兵の場合のみ。両方の場合は歩兵欄のみに入力する。
C24: 突撃を受ける方向 | G24: 1:側面、 2:背面、 空白：正面（方陣は自動的に正面扱い）
C25: 小川を渡る突撃 | G25: 騎兵が小川を渡る突撃なら1、それ例外は空白
C26: 騎兵の種類 | G26: 1:槍騎兵、 2:重騎兵、 空白：左記以外
B27: 白兵戦フェーズ固有 | G27: 判定する側の兵科のみ入力
C28: 強襲を受ける方向 | G28: 防御側から見た方向で、1:側面、 2:背面、 空白：正面（方陣は正面扱い）
C29: 障害地形をまたぐ強襲 | G29: 登坂なら1、小川なら2、両方なら3、それ例外は空白
C30: 防御側の隊形 | G30: 攻撃側の場合のみ入力（上記の種別参照）
C31: 射撃により損出した戦力 | G31: 攻撃側の場合のみ入力
A32: 特定フェーズに追加 | G32: 騎兵突撃、移動、防御射撃、白兵戦のフェーズで追加
B33: 砲兵への白兵戦判定用 | G33: （注）歩兵・騎兵の場合のみ
C34: 砲兵の短距離射撃力 | E34: 12 | G34: 目標とする砲兵の射撃力を入力 | J34: 19
C35: 射撃により損出した戦力 | J35: 19
C36: 砲兵の指揮官（指揮範囲内） | E36: 2 | G36: 指揮官が超有能な指揮官なら下表の値を入力、それ以外は空白 | J36: 14
J37: 1
I38: 乱数１＝ | J38: 2 | K38: ：サイコロ１ヶ用（１〜６）
D39: 歩兵 | E39: 騎兵 | F39: 砲兵 | I39: 乱数２＝ | J39: 20 | K39: ：サイコロ２ヶ用（１〜３６）
C40: 士気判定結果 | E40: 失敗 | G40: 判定後は色が変わる | I40: 乱数３＝ | J40: 3 | K40: ：サイコロ２ヶ加算用（２〜１２）
I41: 乱数４＝ | J41: 5 | K41: ：サイコロ１ヶ用（１〜５）
I42: 乱数５＝ | J42: 31 | K42: ：サイコロ２ヶ用２回目（１〜３６）
I43: 乱数６＝ | J43: 0.7980312646 | K43: ：０〜１の乱数
I44: 乱数７＝ | J44: 5 | K44: ：サイコロ１ヶ用２回目（１〜５）
I45: 乱数８＝ | J45: 4 | K45: ：サイコロ１ヶ用２回目（１〜６）
I46: 乱数９＝ | J46: 8 | K46: ：サイコロ２ヶ加算用２回目（２〜１２）
I47: 乱数１０＝ | J47: 0.6887675344 | K47: ：０〜１の乱数

Sheet 隊形
H1: 指揮官修正の入力値 | N1: 計算領域
F2: 判定後は色が変わる | H2: 同じHEXに居る場合は、砲兵ボーナス値（最大で１８）
H3: 隣接HEXに居る場合は、砲兵ボーナス値÷２（切り捨て） | N3: 25 | O3: ：乱数
H4: 指揮官が居ない場合は、空白
A5: 種別 | B5: 2 | C5: 5
A6: 指揮官修正
A7: 種別名 | B7: フランスNap | C7: ロシア基本 | N7: =B7 -> フランスNap | O7: =C7 -> ロシア基本 | P7: 0 | Q7: 0 | R7: 0 | S7: 0 | T7: 0 | U7: 0 | V7: 0 | W7: 0 | X7: 0
A8: 12pdr
A9: 9pdr
A10: 8pdr
A11: 6pdr
A12: 6pdr（騎馬）
A13: 4pdr
A14: 3pdr
A16: No | B16: 種別 | C16: =A16 -> No | D16: 種別 | E16: No | F16: 種別 | G16: No | H16: 種別 | J16: 各種別に含まれる国
A17: 1 | B17: フランス基本 | C17: 6 | D17: ロシア近衛 | E17: 11 | F17: フランス型１ | G17: 16 | H17: イギリス近衛隊 | I17: フランス型１ | J17: フランス型２ | K17: オーストリア型１ | L17: オーストリア型２
A18: 2 | B18: フランスNap | C18: 7 | D18: 旧プロシア基本 | E18: 12 | F18: フランス型２ | G18: 17 | H18: ポルトガル | I18: ポーランド | J18: イタリア | K18: バーデン | L18: デンマーク
A19: 3 | B19: フランス親衛隊 | C19: 8 | D19: 旧プロシア近衛 | E19: 13 | F19: オーストリア型１ | G19: 18 | H19: スペイン | J19: ベルク | K19: ババリア | L19: スウェーデン
A20: 4 | B20: オーストリア | C20: 9 | D20: 新プロシア基本 | E20: 14 | F20: オーストリア型２ | G20: 19 | J20: ウエストファリア | K20: ヘッセ
A21: 5 | B21: ロシア基本 | C21: 10 | D21: 新プロシア近衛 | E21: 15 | F21: イギリス基本 | G21: 20 | J21: ザクセン | K21: ヴィテンブルグ
K22: オランダ

Sheet 部隊別
A1: フランス軍
A2: 1
A3: 2
A4: 3
A5: 4
A6: 5
A7: 6
A8: 7
A9: 8
A10: 9
A11: 10
A12: 連合軍
A13: 1
A14: 2
A15: 3
A16: 4
A17: 5
A18: 6
A19: 7
A20: 8
A21: 9
A22: 10

Sheet 部隊モラル表
A1: フランス軍 | F1: 連合軍
A2: 部隊名称 | B2: 離脱大隊数 | C2: 士気レベル | D2: 部隊モラル | F2: =A2 -> 部隊名称 | G2: =B2 -> 離脱大隊数 | H2: 士気レベル | I2: 部隊モラル
A3: Legrand師団 | B3: 2 | C3: 1 | D3: -3 | F3: ロシア軍 | G3: 3 | H3: 1 | I3: -4
A4: Legrand師団 | B4: 4 | C4: 2 | D4: -6 | F4: ロシア軍 | G4: 7 | H4: 2 | I4: -6
A5: Legrand師団 | B5: 6 | C5: 3 | D5: -9 | F5: ロシア軍 | G5: 10 | H5: 3 | I5: -8
A6: Oudinoｔ師団 | B6: 2 | C6: 1 | D6: -3
A7: Oudinoｔ師団 | B7: 4 | C7: 2 | D7: -6
A8: Oudinoｔ師団 | B8: 6 | C8: 3 | D8: -9
A9: Suchet師団 | B9: 2 | C9: 1 | D9: -3
A10: Suchet師団 | B10: 4 | C10: 2 | D10: -6
A11: Suchet師団 | B11: 6 | C11: 3 | D11: -9

Sheet 方陣表
A1: フランス軍 | B1: 縦隊から | F1: 横隊から | K1: ロシア軍 | L1: 縦隊から | P1: 横隊から
A2: 距離 | B2: 方陣 | C2: 混乱 | D2: 潰走 | E2: 上限 | F2: =B2 -> 方陣 | G2: =C2 -> 混乱 | H2: 潰走 | I2: 上限 | K2: 距離 | L2: 方陣 | M2: 混乱 | N2: 潰走 | O2: 上限 | P2: =L2 -> 方陣 | Q2: =M2 -> 混乱 | R2: 潰走 | S2: 上限
A3: 4HEX | B3: 11 | C3: 97 | D3: 98 | E3: 99 | F3: 11 | G3: 65 | H3: 98 | I3: 99 | K3: 4HEX | L3: 11 | M3: 56 | N3: 65 | O3: 99 | P3: 11 | Q3: 97 | R3: 98 | S3: 99
A4: 3HEX | B4: 11 | C4: 97 | D4: 98 | E4: 99 | F4: 11 | G4: 46 | H4: 62 | I4: 99 | K4: 3HEX | L4: 11 | M4: 43 | N4: 61 | O4: 99 | P4: 11 | Q4: 97 | R4: 98 | S4: 99
A5: 2HEX | B5: 11 | C5: 44 | D5: 62 | E5: 99 | F5: 11 | G5: 33 | H5: 56 | I5: 99 | K5: 2HEX | L5: 11 | M5: 31 | N5: 53 | O5: 99 | P5: 11 | Q5: 35 | R5: 56 | S5: 99
A6: 1HEX | B6: 11 | C6: 32 | D6: 55 | E6: 99 | F6: 11 | G6: 23 | H6: 54 | I6: 99 | K6: 1HEX | L6: 11 | M6: 23 | N6: 51 | O6: 99 | P6: 11 | Q6: 32 | R6: 51 | S6: 99
A7: 指揮官補正 | B7: -6 | C7: 歩兵種別補正 | H7: 騎兵種別補正 | K7: 指揮官補正 | L7: -6 | M7: 歩兵種別補正 | R7: 騎兵種別補正
A8: 部隊モラル | B8: 3 | C8: 軽歩兵 | D8: 同盟兵 | E8: 擲弾兵 | F8: 親衛隊 | H8: 軽騎兵 | I8: 槍騎兵 | K8: 部隊モラル | L8: 3 | M8: 軽歩兵 | N8: 擲弾兵 | O8: 親衛隊 | R8: 軽騎兵 | S8: 槍騎兵
C9: -3 | D9: 3 | E9: -3 | F9: -6 | H9: 3 | I9: 6 | M9: -3 | N9: -3 | O9: -6 | R9: 3 | S9: 6

Sheet 環境表
B1: 時 | C1: 分 | D1: 時間帯 | E1: 天候
A2: =B2*100+C2 -> 0 | B2: 0 | C2: 0 | D2: 夜 | E2: 晴
A3: =B3*100+C3 -> 20 | B3: 0 | C3: 20 | D3: 夜 | E3: 晴
A4: 40 | B4: 0 | C4: 40 | D4: 夜 | E4: 晴
A5: 100 | B5: 1 | C5: 0 | D5: 夜 | E5: 晴
A6: 120 | B6: 1 | C6: 20 | D6: 夜 | E6: 晴
A7: 140 | B7: 1 | C7: 40 | D7: 夜 | E7: 晴
A8: 200 | B8: 2 | C8: 0 | D8: 夜 | E8: 晴
A9: 220 | B9: 2 | C9: 20 | D9: 夜 | E9: 晴
A10: 240 | B10: 2 | C10: 40 | D10: 夜 | E10: 晴
A11: 300 | B11: 3 | C11: 0 | D11: 夜 | E11: 晴
A12: 320 | B12: 3 | C12: 20 | D12: 夜 | E12: 晴
A13: 340 | B13: 3 | C13: 40 | D13: 夜 | E13: 晴
A14: 400 | B14: 4 | C14: 0 | D14: 夜 | E14: 晴
A15: 420 | B15: 4 | C15: 20 | D15: 夜 | E15: 晴
A16: 440 | B16: 4 | C16: 40 | D16: 夜 | E16: 晴
A17: 500 | B17: 5 | C17: 0 | D17: 夜 | E17: 晴
A18: 520 | B18: 5 | C18: 20 | D18: 夜 | E18: 晴
A19: 540 | B19: 5 | C19: 40 | D19: 夜 | E19: 晴
A20: 600 | B20: 6 | C20: 0 | D20: 夜 | E20: 晴
A21: 620 | B21: 6 | C21: 20 | D21: 日出前 | E21: 晴
A22: 640 | B22: 6 | C22: 40 | D22: 日出前 | E22: 晴
A23: 700 | B23: 7 | C23: 0 | D23: 昼 | E23: 晴
A24: 720 | B24: 7 | C24: 20 | D24: 昼 | E24: 晴
A25: 740 | B25: 7 | C25: 40 | D25: 昼 | E25: 晴
A26: 800 | B26: 8 | C26: 0 | D26: 昼 | E26: 晴
A27: 820 | B27: 8 | C27: 20 | D27: 昼 | E27: 晴
A28: 840 | B28: 8 | C28: 40 | D28: 昼 | E28: 晴
A29: 900 | B29: 9 | C29: 0 | D29: 昼 | E29: 晴
A30: 920 | B30: 9 | C30: 20 | D30: 昼 | E30: 晴
A31: 940 | B31: 9 | C31: 40 | D31: 昼 | E31: 晴
A32: 1000 | B32: 10 | C32: 0 | D32: 昼 | E32: 晴
A33: 1020 | B33: 10 | C33: 20 | D33: 昼 | E33: 晴
A34: 1040 | B34: 10 | C34: 40 | D34: 昼 | E34: 晴
A35: 1100 | B35: 11 | C35: 0 | D35: 昼 | E35: 晴
A36: 1120 | B36: 11 | C36: 20 | D36: 昼 | E36: 晴
A37: 1140 | B37: 11 | C37: 40 | D37: 昼 | E37: 晴
A38: 1200 | B38: 12 | C38: 0 | D38: 昼 | E38: 晴
A39: 1220 | B39: 12 | C39: 20 | D39: 昼 | E39: 晴
A40: 1240 | B40: 12 | C40: 40 | D40: 昼 | E40: 晴
A41: 1300 | B41: 13 | C41: 0 | D41: 昼 | E41: 晴
A42: 1320 | B42: 13 | C42: 20 | D42: 昼 | E42: 晴
A43: 1340 | B43: 13 | C43: 40 | D43: 昼 | E43: 晴
A44: 1400 | B44: 14 | C44: 0 | D44: 昼 | E44: 晴
A45: 1420 | B45: 14 | C45: 20 | D45: 昼 | E45: 晴
A46: 1440 | B46: 14 | C46: 40 | D46: 昼 | E46: 晴
A47: 1500 | B47: 15 | C47: 0 | D47: 昼 | E47: 晴
A48: 1520 | B48: 15 | C48: 20 | D48: 昼 | E48: 晴
A49: 1540 | B49: 15 | C49: 40 | D49: 昼 | E49: 晴
A50: 1600 | B50: 16 | C50: 0 | D50: 昼 | E50: 晴
A51: 1620 | B51: 16 | C51: 20 | D51: 昼 | E51: 晴
A52: 1640 | B52: 16 | C52: 40 | D52: 昼 | E52: 晴
A53: 1700 | B53: 17 | C53: 0 | D53: 昼 | E53: 晴
A54: 1720 | B54: 17 | C54: 20 | D54: 昼 | E54: 晴
A55: 1740 | B55: 17 | C55: 40 | D55: 日入後 | E55: 晴
A56: 1800 | B56: 18 | C56: 0 | D56: 日入後 | E56: 晴
A57: 1820 | B57: 18 | C57: 20 | D57: 日入後 | E57: 晴
A58: 1840 | B58: 18 | C58: 40 | D58: 夜 | E58: 晴
A59: 1900 | B59: 19 | C59: 0 | D59: 夜 | E59: 晴
A60: 1920 | B60: 19 | C60: 20 | D60: 夜 | E60: 晴
A61: 1940 | B61: 19 | C61: 40 | D61: 夜 | E61: 晴
A62: 2000 | B62: 20 | C62: 0 | D62: 夜 | E62: 晴
A63: 2020 | B63: 20 | C63: 20 | D63: 夜 | E63: 晴
A64: 2040 | B64: 20 | C64: 40 | D64: 夜 | E64: 晴
A65: 2100 | B65: 21 | C65: 0 | D65: 夜 | E65: 晴
A66: 2120 | B66: 21 | C66: 20 | D66: 夜 | E66: 晴
A67: =B67*100+C67 -> 2140 | B67: 21 | C67: 40 | D67: 夜 | E67: 晴
A68: 2200 | B68: 22 | C68: 0 | D68: 夜 | E68: 晴
A69: 2220 | B69: 22 | C69: 20 | D69: 夜 | E69: 晴
A70: 2240 | B70: 22 | C70: 40 | D70: 夜 | E70: 晴
A71: 2300 | B71: 23 | C71: 0 | D71: 夜 | E71: 晴
A72: 2320 | B72: 23 | C72: 20 | D72: 夜 | E72: 晴
A73: 2340 | B73: 23 | C73: 40 | D73: 夜 | E73: 晴

Sheet 増援表
B1: 時 | C1: 分 | D1: フランス軍 | E1: 連合軍 | F1: 可変2 | G1: 部隊別
A2: =B2*100+C2 -> 0 | B2: 0 | C2: 0
A3: =B3*100+C3 -> 20 | B3: 0 | C3: 20
A4: 40 | B4: 0 | C4: 40
A5: 100 | B5: 1 | C5: 0
A6: 120 | B6: 1 | C6: 20
A7: 140 | B7: 1 | C7: 40
A8: 200 | B8: 2 | C8: 0
A9: 220 | B9: 2 | C9: 20
A10: 240 | B10: 2 | C10: 40
A11: 300 | B11: 3 | C11: 0
A12: 320 | B12: 3 | C12: 20
A13: 340 | B13: 3 | C13: 40
A14: 400 | B14: 4 | C14: 0
A15: 420 | B15: 4 | C15: 20
A16: 440 | B16: 4 | C16: 40
A17: 500 | B17: 5 | C17: 0
A18: 520 | B18: 5 | C18: 20
A19: 540 | B19: 5 | C19: 40
A20: 600 | B20: 6 | C20: 0
A21: 620 | B21: 6 | C21: 20
A22: 640 | B22: 6 | C22: 40
A23: 700 | B23: 7 | C23: 0
A24: 720 | B24: 7 | C24: 20
A25: 740 | B25: 7 | C25: 40
A26: 800 | B26: 8 | C26: 0
A27: 820 | B27: 8 | C27: 20
A28: 840 | B28: 8 | C28: 40
A29: 900 | B29: 9 | C29: 0
A30: 920 | B30: 9 | C30: 20
A31: 940 | B31: 9 | C31: 40
A32: 1000 | B32: 10 | C32: 0
A33: 1020 | B33: 10 | C33: 20
A34: 1040 | B34: 10 | C34: 40
A35: 1100 | B35: 11 | C35: 0
A36: 1120 | B36: 11 | C36: 20
A37: 1140 | B37: 11 | C37: 40
A38: 1200 | B38: 12 | C38: 0
A39: 1220 | B39: 12 | C39: 20
A40: 1240 | B40: 12 | C40: 40
A41: 1300 | B41: 13 | C41: 0
A42: 1320 | B42: 13 | C42: 20
A43: 1340 | B43: 13 | C43: 40
A44: 1400 | B44: 14 | C44: 0
A45: 1420 | B45: 14 | C45: 20
A46: 1440 | B46: 14 | C46: 40
A47: 1500 | B47: 15 | C47: 0
A48: 1520 | B48: 15 | C48: 20
A49: 1540 | B49: 15 | C49: 40
A50: 1600 | B50: 16 | C50: 0 | D50: 12
A51: 1620 | B51: 16 | C51: 20 | D51: 12
A52: 1640 | B52: 16 | C52: 40
A53: 1700 | B53: 17 | C53: 0 | D53: 12
A54: 1720 | B54: 17 | C54: 20 | D54: 12
A55: 1740 | B55: 17 | C55: 40 | D55: 12
A56: 1800 | B56: 18 | C56: 0
A57: 1820 | B57: 18 | C57: 20
A58: 1840 | B58: 18 | C58: 40
A59: 1900 | B59: 19 | C59: 0
A60: 1920 | B60: 19 | C60: 20
A61: 1940 | B61: 19 | C61: 40
A62: 2000 | B62: 20 | C62: 0
A63: 2020 | B63: 20 | C63: 20
A64: 2040 | B64: 20 | C64: 40
A65: 2100 | B65: 21 | C65: 0
A66: 2120 | B66: 21 | C66: 20
A67: =B67*100+C67 -> 2140 | B67: 21 | C67: 40
A68: 2200 | B68: 22 | C68: 0
A69: 2220 | B69: 22 | C69: 20
A70: 2240 | B70: 22 | C70: 40
A71: 2300 | B71: 23 | C71: 0
A72: 2320 | B72: 23 | C72: 20
A73: 2340 | B73: 23 | C73: 40

Sheet 部隊別表
A1: フランス軍 | B1: 1600 | D1: 1620 | F1: 1700 | H1: 1720 | J1: 1740
A2: 1 | B2: 1st Gr | D2: 17th Light | E2: * | F2: 40th Line | G2: * | H2: 1st Ch | I2: * | J2: 88th Line | K2: *
A3: 2 | B3: 2nd Gr | D3: 34th Line | E3: * | F3: 64th Line | G3: * | H3: 13th Ch | I3: *
A4: 3 | B4: 9th Hu | C4: * | D4: 26th Light | E4: * | F4: 3rd Line | G4: * | H4: 21th Ch | I4: *
A5: 4 | B5: 10th Hu | C5: * | D5: 75th Line | E5: * | F5: 18th Line | G5: *
A6: 5 | B6: Lannes | C6: * | F6: Corse Bn | G6: *
A7: 6 | B7: Murat | C7: * | F7: Po Bn | G7: *
A8: 7 | F8: 3rd Gr | G8: *
A9: 8 | F9: 4th Gr | G9: *
A10: 9
A11: 10
A12: 連合軍
A13: 1
A14: 2
A15: 3
A16: 4
A17: 5
A18: 6
A19: 7
A20: 8
A21: 9
A22: 10

Sheet 時刻変化
B1: 時 | C1: 分 | D1: 時間帯 | E1: 天候 | G1: 現在時刻 | H1: 時 | I1: 分 | J1: 時間帯 | K1: 天候 | L1: 天候文字 | M1: 天候数値
A2: =B2*100+C2 -> 0 | B2: 0 | C2: 0 | D2: 夜 | E2: 晴 | G2: =H2*100+I2 -> 900 | H2: 9 | I2: 0 | J2: =LOOKUP(G2,A2:A73,D2:D73) -> 昼 | K2: =LOOKUP(G2,A2:A73,E2:E73) -> 晴 | L2: =MID(K2,1,2) -> 晴 | M2: =IF(M3>2,MID(K2,3,M3-2),"") -> 
A3: =B3*100+C3 -> 20 | B3: 0 | C3: 20 | D3: 夜 | E3: 晴 | M3: =LEN(K2) -> 1
A4: 40 | B4: 0 | C4: 40 | D4: 夜 | E4: 晴
A5: 100 | B5: 1 | C5: 0 | D5: 夜 | E5: 晴
A6: 120 | B6: 1 | C6: 20 | D6: 夜 | E6: 晴
A7: 140 | B7: 1 | C7: 40 | D7: 夜 | E7: 晴
A8: 200 | B8: 2 | C8: 0 | D8: 夜 | E8: 晴
A9: 220 | B9: 2 | C9: 20 | D9: 夜 | E9: 晴
A10: 240 | B10: 2 | C10: 40 | D10: 夜 | E10: 晴
A11: 300 | B11: 3 | C11: 0 | D11: 夜 | E11: 晴
A12: 320 | B12: 3 | C12: 20 | D12: 夜 | E12: 晴
A13: 340 | B13: 3 | C13: 40 | D13: 夜 | E13: 晴
A14: 400 | B14: 4 | C14: 0 | D14: 夜 | E14: 晴
A15: 420 | B15: 4 | C15: 20 | D15: 夜 | E15: 晴
A16: 440 | B16: 4 | C16: 40 | D16: 夜 | E16: 晴
A17: 500 | B17: 5 | C17: 0 | D17: 夜 | E17: 晴
A18: 520 | B18: 5 | C18: 20 | D18: 夜 | E18: 晴
A19: 540 | B19: 5 | C19: 40 | D19: 夜 | E19: 晴
A20: 600 | B20: 6 | C20: 0 | D20: 夜 | E20: 晴
A21: 620 | B21: 6 | C21: 20 | D21: 日出前 | E21: 晴
A22: 640 | B22: 6 | C22: 40 | D22: 日出前 | E22: 晴
A23: 700 | B23: 7 | C23: 0 | D23: 昼 | E23: 晴
A24: 720 | B24: 7 | C24: 20 | D24: 昼 | E24: 晴
A25: 740 | B25: 7 | C25: 40 | D25: 昼 | E25: 晴
A26: 800 | B26: 8 | C26: 0 | D26: 昼 | E26: 晴
A27: 820 | B27: 8 | C27: 20 | D27: 昼 | E27: 晴
A28: 840 | B28: 8 | C28: 40 | D28: 昼 | E28: 晴
A29: 900 | B29: 9 | C29: 0 | D29: 昼 | E29: 晴
A30: 920 | B30: 9 | C30: 20 | D30: 昼 | E30: 晴
A31: 940 | B31: 9 | C31: 40 | D31: 昼 | E31: 晴
A32: 1000 | B32: 10 | C32: 0 | D32: 昼 | E32: 晴
A33: 1020 | B33: 10 | C33: 20 | D33: 昼 | E33: 晴
A34: 1040 | B34: 10 | C34: 40 | D34: 昼 | E34: 晴
A35: 1100 | B35: 11 | C35: 0 | D35: 昼 | E35: 晴
A36: 1120 | B36: 11 | C36: 20 | D36: 昼 | E36: 晴
A37: 1140 | B37: 11 | C37: 40 | D37: 昼 | E37: 晴
A38: 1200 | B38: 12 | C38: 0 | D38: 昼 | E38: 晴
A39: 1220 | B39: 12 | C39: 20 | D39: 昼 | E39: 晴
A40: 1240 | B40: 12 | C40: 40 | D40: 昼 | E40: 晴
A41: 1300 | B41: 13 | C41: 0 | D41: 昼 | E41: 晴
A42: 1320 | B42: 13 | C42: 20 | D42: 昼 | E42: 晴
A43: 1340 | B43: 13 | C43: 40 | D43: 昼 | E43: 晴
A44: 1400 | B44: 14 | C44: 0 | D44: 昼 | E44: 晴
A45: 1420 | B45: 14 | C45: 20 | D45: 昼 | E45: 晴
A46: 1440 | B46: 14 | C46: 40 | D46: 昼 | E46: 晴
A47: 1500 | B47: 15 | C47: 0 | D47: 昼 | E47: 晴
A48: 1520 | B48: 15 | C48: 20 | D48: 昼 | E48: 晴
A49: 1540 | B49: 15 | C49: 40 | D49: 昼 | E49: 晴
A50: 1600 | B50: 16 | C50: 0 | D50: 昼 | E50: 晴
A51: 1620 | B51: 16 | C51: 20 | D51: 昼 | E51: 晴
A52: 1640 | B52: 16 | C52: 40 | D52: 昼 | E52: 晴
A53: 1700 | B53: 17 | C53: 0 | D53: 昼 | E53: 晴
A54: 1720 | B54: 17 | C54: 20 | D54: 昼 | E54: 晴
A55: 1740 | B55: 17 | C55: 40 | D55: 日入後 | E55: 晴
A56: 1800 | B56: 18 | C56: 0 | D56: 日入後 | E56: 晴
A57: 1820 | B57: 18 | C57: 20 | D57: 日入後 | E57: 晴
A58: 1840 | B58: 18 | C58: 40 | D58: 夜 | E58: 晴
A59: 1900 | B59: 19 | C59: 0 | D59: 夜 | E59: 晴
A60: 1920 | B60: 19 | C60: 20 | D60: 夜 | E60: 晴
A61: 1940 | B61: 19 | C61: 40 | D61: 夜 | E61: 晴
A62: 2000 | B62: 20 | C62: 0 | D62: 夜 | E62: 晴
A63: 2020 | B63: 20 | C63: 20 | D63: 夜 | E63: 晴
A64: 2040 | B64: 20 | C64: 40 | D64: 夜 | E64: 晴
A65: 2100 | B65: 21 | C65: 0 | D65: 夜 | E65: 晴
A66: 2120 | B66: 21 | C66: 20 | D66: 夜 | E66: 晴
A67: =B67*100+C67 -> 2140 | B67: 21 | C67: 40 | D67: 夜 | E67: 晴
A68: 2200 | B68: 22 | C68: 0 | D68: 夜 | E68: 晴
A69: 2220 | B69: 22 | C69: 20 | D69: 夜 | E69: 晴
A70: 2240 | B70: 22 | C70: 40 | D70: 夜 | E70: 晴
A71: 2300 | B71: 23 | C71: 0 | D71: 夜 | E71: 晴
A72: 2320 | B72: 23 | C72: 20 | D72: 夜 | E72: 晴
A73: 2340 | B73: 23 | C73: 40 | D73: 夜 | E73: 晴

Sheet 天候変化
B1: 賽の目min | C1: 天候 | H1: 対象ゲーム | I1: 天候結果 | J1: 天候数値 | K1: 乱数２ | L1: 検索キー | N1: 歩兵 | O1: 騎兵 | P1: 砲兵
A2: 可変1 | B2: 11 | C2: 晴 | D2: =VALUE(MID(B2,1,1)) -> 1 | E2: =VALUE(MID(B2,2,1)) -> 1 | F2: =(D2-1)*6+E2 -> 1 | G2: =F2+100*VALUE(MID(A2,3,1)) -> 101 | H2: Albuera | I2: =LOOKUP(L2,G2:G37,C2:C37) ->  | K2: =士気2!J39 -> 20 | L2: =J2*100+K2 -> 20 | N2: =IF($J$2=7,N48,N59) -> -50 | O2: =IF($J$2=7,O48,O59) -> -43 | P2: -76
A3: 可変1 | B3: 22 | C3: 小雨 | D3: =VALUE(MID(B3,1,1)) -> 2 | E3: =VALUE(MID(B3,2,1)) -> 2 | F3: 8 | G3: =F3+100*VALUE(MID(A3,3,1)) -> 108 | H3: Albuera
A4: 可変1 | B4: 51 | C4: 霧 | D4: 5 | E4: 1 | F4: 25 | G4: 125 | H4: Albuera | J4: 濃淡霧の視程 | K4: 時刻（時） | L4: LOSのmax
A5: 可変1 | B5: 62 | C5: 雨 | D5: 6 | E5: 2 | F5: 32 | G5: 132 | H5: Albuera | J5: 現在 | K5: =時刻変化!H2 -> 9 | L5: =LOOKUP(K5,K11:K17,L11:L17) -> 4
A6: 可変1 | B6: 66 | C6: 激しい雨 | D6: 6 | E6: 6 | F6: =(D6-1)*6+E6 -> 36 | G6: 136 | H6: Albuera | J6: 条件 | K6: 0 | L6: 99
A7: 可変2 | B7: 11 | C7: 晴 | D7: 1 | E7: 1 | F7: =(D7-1)*6+E7 -> 1 | G7: 201 | H7: Albuera | K7: 1 | L7: 99
A8: 可変2 | B8: 21 | C8: 小雨 | D8: 2 | E8: 1 | F8: 7 | G8: 207 | H8: Albuera | K8: 2 | L8: 99
A9: 可変2 | B9: 34 | C9: 霧 | D9: 3 | E9: 4 | F9: 16 | G9: 216 | H9: Albuera | K9: 3 | L9: 99
A10: 可変2 | B10: 51 | C10: 雨 | D10: 5 | E10: 1 | F10: 25 | G10: 225 | H10: Albuera | K10: 4 | L10: 99 | N10: 雪の補正
A11: 可変2 | B11: 65 | C11: 激しい雨 | D11: 6 | E11: 5 | F11: 35 | G11: 235 | H11: Albuera | K11: 5 | L11: 99 | N11: 前回値 | O11: 乱数１ | P11: 補正値 | Q11: 天候結果
A12: 可変3 | B12: 11 | C12: 晴 | D12: 1 | E12: 1 | F12: 1 | G12: 301 | H12: Albuera | K12: 6 | L12: 99 | N12: 1 | O12: =士気2!J38 -> 2 | P12: 6 | Q12: 吹雪
A13: 可変3 | B13: 14 | C13: 小雨 | D13: 1 | E13: 4 | F13: 4 | G13: 304 | H13: Albuera | K13: 7 | L13: =ROUNDDOWN(RANDBETWEEN(100,699)/100,0)+1 -> 2 | M13: Auerstat
A14: 可変3 | B14: 22 | C14: 霧 | D14: 2 | E14: 2 | F14: 8 | G14: 308 | H14: Albuera | K14: 8 | L14: =ROUNDDOWN(RANDBETWEEN(100,699)/100,0)+2 -> 8 | M14: Auerstat
A15: 可変3 | B15: 34 | C15: 雨 | D15: 3 | E15: 4 | F15: 16 | G15: 316 | H15: Albuera | K15: 9 | L15: =ROUNDDOWN(RANDBETWEEN(100,699)/100,0)+3 -> 4 | M15: Auerstat
A16: 可変3 | B16: 45 | C16: 激しい雨 | D16: 4 | E16: 5 | F16: 23 | G16: 323 | H16: Albuera | K16: 10 | L16: 99 | N16: Dredenの視程 | P16: LOSのmax
A17: 可変4 | B17: 11 | C17: 晴 | D17: 1 | E17: 1 | F17: 1 | G17: 401 | H17: Albuera | K17: 11 | L17: 99 | N17: 現在 | O17: =J2 -> 0 | P17: =LOOKUP(O17,O18:O20,P18:P20) -> 
A18: 可変4 | B18: 34 | C18: 小雨 | D18: 3 | E18: 4 | F18: 16 | G18: 416 | H18: Albuera | K18: 12 | L18: 99 | N18: 条件 | O18: 9 | P18: 6 | Q18: 07:00:00
A19: 可変4 | B19: 51 | C19: 霧 | D19: 5 | E19: 1 | F19: 25 | G19: 425 | H19: Albuera | K19: 13 | L19: 99 | O19: 10 | P19: 8 | Q19: 07:20:00
A20: 可変4 | B20: 64 | C20: 雨 | D20: 6 | E20: 4 | F20: 34 | G20: 434 | H20: Albuera | K20: 14 | L20: 99 | O20: 11 | P20: 10 | Q20: 07:40:00
A21: 可変4 | B21: 66 | C21: 激しい雨 | D21: 6 | E21: 6 | F21: 36 | G21: 436 | H21: Albuera | K21: 15 | L21: 99
A22: 可変5 | B22: 11 | C22: 晴 | D22: =VALUE(MID(B22,1,1)) -> 1 | E22: =VALUE(MID(B22,2,1)) -> 1 | F22: =(D22-1)*6+E22 -> 1 | G22: =F22+100*VALUE(MID(A22,3,1)) -> 501 | H22: Eylau | K22: 16 | L22: 99
A23: 可変5 | B23: 31 | C23: 雪 | D23: 3 | E23: 1 | F23: 13 | G23: 513 | H23: Eylau | K23: 17 | L23: 99
A24: 可変5 | B24: 61 | C24: 吹雪 | D24: 6 | E24: 1 | F24: 31 | G24: 531 | H24: Eylau | K24: 18 | L24: 99
A25: 可変6 | B25: 11 | C25: 雷雨 | D25: =VALUE(MID(B25,1,1)) -> 1 | E25: =VALUE(MID(B25,2,1)) -> 1 | F25: =(D25-1)*6+E25 -> 1 | G25: =F25+100*VALUE(MID(A25,3,1)) -> 601 | H25: Ligny | K25: 19 | L25: 99
A26: 可変6 | B26: 15 | C26: 晴 | D26: 1 | E26: 5 | F26: 5 | G26: 605 | H26: Ligny | K26: 20 | L26: 99
A27: 可変7 | B27: 11 | C27: 泥濘 | D27: =VALUE(MID(B27,1,1)) -> 1 | E27: =VALUE(MID(B27,2,1)) -> 1 | F27: =(D27-1)*6+E27 -> 1 | G27: =F27+100*VALUE(MID(A27,3,1)) -> 701 | H27: Vauchamps | K27: 21 | L27: 99
A28: 可変7 | B28: 66 | C28: 泥濘 | D28: 6 | E28: 6 | F28: 36 | G28: 736 | H28: Vauchamps | K28: 22 | L28: 99
A29: 可変8 | B29: 11 | C29: 泥濘 | D29: 1 | E29: 1 | F29: 1 | G29: 801 | H29: Vauchamps | K29: 23 | L29: 99
A30: 可変8 | B30: 66 | C30: 泥濘 | D30: 6 | E30: 6 | F30: 36 | G30: 836 | H30: Vauchamps
A31: 可変9 | B31: 11 | C31: 可変雨 | D31: =VALUE(MID(B31,1,1)) -> 1 | E31: =VALUE(MID(B31,2,1)) -> 1 | F31: =(D31-1)*6+E31 -> 1 | G31: =F31+100*VALUE(MID(A31,3,1)) -> 901 | H31: Dresden | J31: 雷雨の場所 | K31: 乱数５ | L31: =士気2!J42 -> 31 | M31: 発生箇所 | N31: =LOOKUP(L31,N33:N44,K33:K44) -> SW+NW
A32: 可変9 | B32: 66 | C32: 可変雨 | D32: 6 | E32: 6 | F32: 36 | G32: 936 | H32: Dresden | J32: 賽の目min | K32: 箇所
A33: 可変10 | B33: 11 | C33: 可変雨 | D33: 1 | E33: 1 | F33: 1 | G33: =F33+100*VALUE(MID(A33,3,2)) -> 1001 | H33: Dresden | J33: 11 | K33: QB | L33: =VALUE(MID(J33,1,1)) -> 1 | M33: =VALUE(MID(J33,2,1)) -> 1 | N33: =(L33-1)*6+M33 -> 1 | O33: Ligny
A34: 可変10 | B34: 66 | C34: 可変雨 | D34: 6 | E34: 6 | F34: 36 | G34: =F34+100*VALUE(MID(A34,3,2)) -> 1036 | H34: Dresden | J34: 14 | K34: NE | L34: =VALUE(MID(J34,1,1)) -> 1 | M34: =VALUE(MID(J34,2,1)) -> 4 | N34: =(L34-1)*6+M34 -> 4 | O34: Ligny
A35: 可変11 | B35: 11 | C35: 可変雨 | D35: 1 | E35: 1 | F35: 1 | G35: 1101 | H35: Dresden | J35: 23 | K35: SE | L35: 2 | M35: 3 | N35: 9 | O35: Ligny
A36: 可変11 | B36: 66 | C36: 可変雨 | D36: 6 | E36: 6 | F36: 36 | G36: 1136 | H36: Dresden | J36: 32 | K36: SW | L36: 3 | M36: 2 | N36: 14 | O36: Ligny
A37: 可変12 | B37: 11 | C37: 要調整！ | D37: =VALUE(MID(B37,1,1)) -> 1 | E37: =VALUE(MID(B37,2,1)) -> 1 | F37: =(D37-1)*6+E37 -> 1 | G37: 1201 | J37: 41 | K37: NW | L37: 4 | M37: 1 | N37: 19 | O37: Ligny
J38: 46 | K38: QB+NW | L38: 4 | M38: 6 | N38: 24 | O38: Ligny
J39: 51 | K39: NE+SE | L39: 5 | M39: 1 | N39: 25 | O39: Ligny
J40: 54 | K40: SE+SW | L40: 5 | M40: 4 | N40: 28 | O40: Ligny
J41: 61 | K41: SW+NW | L41: 6 | M41: 1 | N41: 31 | O41: Ligny
J42: 63 | K42: SW+NW+QB | L42: 6 | M42: 3 | N42: 33 | O42: Ligny
J43: 64 | K43: NW+NE | L43: 6 | M43: 4 | N43: 34 | O43: Ligny
J44: 66 | K44: NW+NE+QB | L44: 6 | M44: 6 | N44: 36 | O44: Ligny
J46: 泥濘の移動低下1
J47: Vauchamps 0900-1100
J48: 乱数５ | K48: =士気2!J42 -> 31 | M48: 該当 | N48: =LOOKUP(K48,M50:M56,N50:N56) -> -30 | O48: =LOOKUP(K48,M50:M56,O50:O56) -> -36 | P48: =LOOKUP(K48,M50:M56,P50:P56) -> -50
J49: 賽の目min | N49: 歩兵 | O49: 騎兵 | P49: 砲兵
J50: 11 | K50: =VALUE(MID(J50,1,1)) -> 1 | L50: =VALUE(MID(J50,2,1)) -> 1 | M50: =(K50-1)*6+L50 -> 1 | N50: 0 | O50: 0 | P50: 0
J51: 21 | K51: 2 | L51: 1 | M51: =(K51-1)*6+L51 -> 7 | N51: 0 | O51: -7 | P51: -15
J52: 31 | K52: 3 | L52: 1 | M52: 13 | N52: -15 | O52: -14 | P52: -15
J53: 41 | K53: 4 | L53: 1 | M53: 19 | N53: -15 | O53: -21 | P53: -30
J54: 51 | K54: 5 | L54: 1 | M54: 25 | N54: -30 | O54: -28 | P54: -30
J55: 61 | K55: 6 | L55: 1 | M55: 31 | N55: -30 | O55: -36 | P55: -50
J56: 66 | K56: 6 | L56: 6 | M56: 36 | N56: -30 | O56: -36 | P56: -50
J57: 泥濘の移動低下2
J58: Vauchamps 1120-
J59: 乱数５ | K59: =士気2!J42 -> 31 | M59: 該当 | N59: =LOOKUP(K59,M61:M67,N61:N67) -> -50 | O59: =LOOKUP(K59,M61:M67,O61:O67) -> -43 | P59: =LOOKUP(K59,M61:M67,P61:P67) -> -76
J60: 賽の目min | N60: 歩兵 | O60: 騎兵 | P60: 砲兵
J61: 11 | K61: =VALUE(MID(J61,1,1)) -> 1 | L61: =VALUE(MID(J61,2,1)) -> 1 | M61: =(K61-1)*6+L61 -> 1 | N61: 0 | O61: -7 | P61: -15
J62: 21 | K62: 2 | L62: 1 | M62: 7 | N62: -15 | O62: -14 | P62: -15
J63: 31 | K63: 3 | L63: 1 | M63: 13 | N63: -15 | O63: -21 | P63: -30
J64: 41 | K64: 4 | L64: 1 | M64: 19 | N64: -30 | O64: -28 | P64: -50
J65: 51 | K65: 5 | L65: 1 | M65: 25 | N65: -30 | O65: -36 | P65: -60
J66: 61 | K66: 6 | L66: 1 | M66: 31 | N66: -50 | O66: -43 | P66: -76
J67: 66 | K67: 6 | L67: 6 | M67: 36 | N67: -50 | O67: -43 | P67: -76

Sheet 天候
B1: 日出前 | C1: 昼 | D1: 日入後 | E1: 夜 | G1: 晴 | H1: 霧 | I1: 小雨 | J1: 雨 | K1: 激しい雨 | L1: 雪 | M1: 吹雪 | N1: 濃淡霧 | O1: 雷雨 | P1: 豪雨の後 | Q1: 水浸し | R1: 泥濘 | S1: 朝霧 | T1: 可変雨 | U1: 濃霧
B2: 1 | C2: 2 | D2: 3 | E2: 4 | G2: 1 | H2: 2 | I2: 3 | J2: 4 | K2: 5 | L2: 6 | M2: 7 | N2: 8 | O2: 9 | P2: 10 | Q2: 11 | R2: 12 | S2: 13 | T2: 14 | U2: 15
A3: LOSの最大HEX | B3: 3 | C3: 99 | D3: 3 | E3: 2 | G3: 99 | H3: 4 | I3: 10 | J3: 6 | K3: 1 | L3: 6 | M3: 1 | N3: 89 | O3: 5 | P3: 99 | Q3: 99 | R3: 99 | S3: 4 | T3: 88 | U3: 4
A4: 散開隊形の射撃射程HEX | B4: 2 | C4: 2 | D4: 2 | E4: 1 | G4: 2 | H4: 2 | I4: 2 | J4: 2 | K4: 0 | L4: 2 | M4: 0 | N4: 2 | O4: 0 | P4: 0 | Q4: 0 | R4: 2 | S4: 1 | T4: 2 | U4: 1
A5: 騎兵突撃 | B5: 0 | C5: 0 | D5: 0 | E5: 0 | G5: 0 | H5: 0 | I5: 0 | J5: 0 | K5: -99 | L5: 0 | M5: -99 | N5: 0 | O5: 0 | P5: 0 | Q5: 0 | R5: 0 | S5: 0 | T5: 0 | U5: -99
A6: 騎兵突撃のボーナス | B6: 5 | C6: 5 | D6: 5 | E6: 0 | G6: 5 | H6: 0 | I6: 5 | J6: 0 | K6: 0 | L6: 0 | M6: 0 | N6: 0 | O6: 0 | P6: 0 | Q6: 0 | R6: 0 | S6: 0 | T6: 5 | U6: 0
A7: 歩兵射撃の可否 補正(%) | B7: 0 | C7: 0 | D7: 0 | E7: -33 | G7: 0 | H7: 0 | I7: -33 | J7: -50 | K7: -99 | L7: -50 | M7: -99 | N7: 0 | O7: -50 | P7: -99 | Q7: 0 | R7: 0 | S7: 0 | T7: 0 | U7: -33
A8: 砲兵射撃の可否 補正(%) | B8: -33 | C8: 0 | D8: -33 | E8: -50 | G8: 0 | H8: 0 | I8: 0 | J8: 0 | K8: -99 | L8: 0 | M8: -99 | N8: 0 | O8: 0 | P8: 0 | Q8: 0 | R8: 0 | S8: 0 | T8: 0 | U8: -33
A9: 歩兵移動力補正(%) | B9: 0 | C9: 0 | D9: 0 | E9: -50 | G9: 0 | H9: -10 | I9: -10 | J9: -33 | K9: -70 | L9: -40 | M9: -80 | N9: -10 | O9: -50 | P9: 0 | Q9: 0 | R9: 79 | S9: 0 | T9: 0 | U9: -33
A10: 騎兵移動力補正(%) | B10: 0 | C10: 0 | D10: 0 | E10: -50 | G10: 0 | H10: -20 | I10: -10 | J10: -33 | K10: -70 | L10: -40 | M10: -80 | N10: -20 | O10: -50 | P10: 0 | Q10: 0 | R10: 79 | S10: 0 | T10: 0 | U10: -33
A11: 砲兵移動力補正(%) | B11: 0 | C11: 0 | D11: 0 | E11: -50 | G11: 0 | H11: -15 | I11: -10 | J11: -33 | K11: -70 | L11: -40 | M11: -80 | N11: -15 | O11: -50 | P11: -50 | Q11: -50 | R11: 79 | S11: 0 | T11: 0 | U11: -33
A14: =時間!A7 -> 時間帯 | B14: =時間!A8 -> 昼 | C14: =IF(B14=B1,1,IF(B14=C1,2,IF(B14=D1,3,4))) -> 2
A15: =時間!B7 -> 天候 | B15: =時間!B8 -> 晴 | C15: =INDEX(G1:U2,2,MATCH(B15,G1:U1,0)) -> 1
B19: =A14 -> 時間帯 | C19: =A15 -> 天候 | D19: 可変 | E19: 比較 | F19: 変換
A20: =A3 -> LOSの最大HEX | B20: =HLOOKUP($C$14,$B$2:$E$11,2,TRUE) -> 99 | C20: =HLOOKUP($C$15,$G$2:$U$11,2,TRUE) -> 99 | D20: =IF(C20=N3,天候変化!L5,IF(C20=T3,天候変化!P17,C20)) -> 99 | E20: =IF(B20<D20,B20,D20) -> 99 | F20: =IF(E20=99,"無限",E20) -> 無限
A21: 散開隊形の射撃射程HEX | B21: =HLOOKUP($C$14,$B$2:$E$11,3,TRUE) -> 2 | C21: =HLOOKUP($C$15,$G$2:$U$11,3,TRUE) -> 2 | D21: =C21 -> 2 | E21: =IF(B21<D21,B21,D21) -> 2 | F21: =IF(E21=0,"射撃不可",E21) -> 2
A22: 騎兵突撃 | B22: =HLOOKUP($C$14,$B$2:$E$11,4,TRUE) -> 0 | C22: =HLOOKUP($C$15,$G$2:$U$11,4,TRUE) -> 0 | D22: =C22 -> 0 | E22: 0 | F22: =IF(E22=-99,"禁止","可能") -> 可能
A23: 騎兵突撃のボーナス | B23: =HLOOKUP($C$14,$B$2:$E$11,5,TRUE) -> 5 | C23: =HLOOKUP($C$15,$G$2:$U$11,5,TRUE) -> 5 | D23: 5 | E23: 5 | F23: =IF(E23=0,"なし","移動力＋５") -> 移動力＋５
A24: 歩兵射撃の可否 補正(%) | B24: =HLOOKUP($C$14,$B$2:$E$11,6,TRUE) -> 0 | C24: =HLOOKUP($C$15,$G$2:$U$11,6,TRUE) -> 0 | D24: 0 | E24: 0 | F24: =IF(E24<=-99,"射撃不可",E24) -> 0
A25: 砲兵射撃の可否 補正(%) | B25: =HLOOKUP($C$14,$B$2:$E$11,7,TRUE) -> 0 | C25: =HLOOKUP($C$15,$G$2:$U$11,7,TRUE) -> 0 | D25: 0 | E25: 0 | F25: =IF(E25<=-99,"射撃不可",E25) -> 0
A26: 歩兵移動力補正(%) | B26: =HLOOKUP($C$14,$B$2:$E$11,8,TRUE) -> 0 | C26: =HLOOKUP($C$15,$G$2:$U$11,8,TRUE) -> 0 | D26: =IF(C26=79,天候変化!N2,C26) -> 0 | E26: 0 | F26: =E26 -> 0
A27: 騎兵移動力補正(%) | B27: =HLOOKUP($C$14,$B$2:$E$11,9,TRUE) -> 0 | C27: =HLOOKUP($C$15,$G$2:$U$11,9,TRUE) -> 0 | D27: =IF(C27=79,天候変化!O2,C27) -> 0 | E27: 0 | F27: =E27 -> 0
A28: 砲兵移動力補正(%) | B28: =HLOOKUP($C$14,$B$2:$E$11,10,TRUE) -> 0 | C28: =HLOOKUP($C$15,$G$2:$U$11,10,TRUE) -> 0 | D28: =IF(C28=79,天候変化!P2,C28) -> 0 | E28: =IF(B28<D28,B28,D28) -> 0 | F28: =E28 -> 0

Sheet 増援計画
B1: 時 | C1: 分 | D1: フランス軍 | E1: 連合軍 | F1: 可変2 | G1: 部隊別 | H1: 現在時刻 | I1: 時 | J1: 分 | K1: 乱数１
A2: =B2*100+C2 -> 0 | B2: 0 | C2: 0 | H2: =I2*100+J2 -> 900 | I2: =時刻変化!H2 -> 9 | J2: =時刻変化!I2 -> 0 | K2: =士気2!J38 -> 2
A3: =B3*100+C3 -> 20 | B3: 0 | C3: 20 | K3: 乱数２
A4: 40 | B4: 0 | C4: 40 | H4: 検索行数 | I4: =D1 -> フランス軍 | J4: =E1 -> 連合軍 | K4: =士気2!J39 -> 20
A5: 100 | B5: 1 | C5: 0 | H5: =MATCH(H2,A2:A73,0)+1 -> 29 | I5: =LOOKUP(H2,A2:A73,D2:D73) -> 0 | J5: =LOOKUP(H2,A2:A73,E2:E73) -> 0 | K5: 損失
A6: 120 | B6: 1 | C6: 20 | H6: 遅延区分 | I6: =I5-I8*100-I9*10 -> 0 | J6: =J5-J8*100-J9*10 -> 0
A7: 140 | B7: 1 | C7: 40 | H7: 定刻判定 | I7: 0 | J7: 0
A8: 200 | B8: 2 | C8: 0 | H8: 部隊識別 | I8: =ROUNDDOWN(I5/100,0) -> 0 | J8: =ROUNDDOWN(J5/100,0) -> 0
A9: 220 | B9: 2 | C9: 20 | H9: 部隊別増援 | I9: =ROUNDDOWN((I5-I8*100)/10,0) -> 0 | J9: =ROUNDDOWN((J5-J8*100)/10,0) -> 0
A10: 240 | B10: 2 | C10: 40 | H10: 増援表示 | I10: 0 | J10: 0
A11: 300 | B11: 3 | C11: 0
A12: 320 | B12: 3 | C12: 20
A13: 340 | B13: 3 | C13: 40
A14: 400 | B14: 4 | C14: 0
A15: 420 | B15: 4 | C15: 20
A16: 440 | B16: 4 | C16: 40
A17: 500 | B17: 5 | C17: 0
A18: 520 | B18: 5 | C18: 20
A19: 540 | B19: 5 | C19: 40
A20: 600 | B20: 6 | C20: 0
A21: 620 | B21: 6 | C21: 20
A22: 640 | B22: 6 | C22: 40
A23: 700 | B23: 7 | C23: 0
A24: 720 | B24: 7 | C24: 20
A25: 740 | B25: 7 | C25: 40
A26: 800 | B26: 8 | C26: 0
A27: 820 | B27: 8 | C27: 20
A28: 840 | B28: 8 | C28: 40
A29: 900 | B29: 9 | C29: 0
A30: 920 | B30: 9 | C30: 20
A31: 940 | B31: 9 | C31: 40
A32: 1000 | B32: 10 | C32: 0
A33: 1020 | B33: 10 | C33: 20
A34: 1040 | B34: 10 | C34: 40
A35: 1100 | B35: 11 | C35: 0
A36: 1120 | B36: 11 | C36: 20
A37: 1140 | B37: 11 | C37: 40
A38: 1200 | B38: 12 | C38: 0
A39: 1220 | B39: 12 | C39: 20
A40: 1240 | B40: 12 | C40: 40
A41: 1300 | B41: 13 | C41: 0
A42: 1320 | B42: 13 | C42: 20
A43: 1340 | B43: 13 | C43: 40
A44: 1400 | B44: 14 | C44: 0
A45: 1420 | B45: 14 | C45: 20
A46: 1440 | B46: 14 | C46: 40
A47: 1500 | B47: 15 | C47: 0
A48: 1520 | B48: 15 | C48: 20
A49: 1540 | B49: 15 | C49: 40
A50: 1600 | B50: 16 | C50: 0 | D50: 12
A51: 1620 | B51: 16 | C51: 20 | D51: 12
A52: 1640 | B52: 16 | C52: 40
A53: 1700 | B53: 17 | C53: 0 | D53: 12
A54: 1720 | B54: 17 | C54: 20 | D54: 12
A55: 1740 | B55: 17 | C55: 40 | D55: 12
A56: 1800 | B56: 18 | C56: 0
A57: 1820 | B57: 18 | C57: 20
A58: 1840 | B58: 18 | C58: 40
A59: 1900 | B59: 19 | C59: 0
A60: 1920 | B60: 19 | C60: 20
A61: 1940 | B61: 19 | C61: 40
A62: 2000 | B62: 20 | C62: 0
A63: 2020 | B63: 20 | C63: 20
A64: 2040 | B64: 20 | C64: 40
A65: 2100 | B65: 21 | C65: 0
A66: 2120 | B66: 21 | C66: 20
A67: =B67*100+C67 -> 2140 | B67: 21 | C67: 40
A68: 2200 | B68: 22 | C68: 0
A69: 2220 | B69: 22 | C69: 20
A70: 2240 | B70: 22 | C70: 40
A71: 2300 | B71: 23 | C71: 0
A72: 2320 | B72: 23 | C72: 20
A73: 2340 | B73: 23 | C73: 40

Sheet 増援計画2
B1: 時 | C1: 分 | D1: フランス軍1 | E1: フランス軍2 | F1: フランス軍3 | G1: フランス軍4 | H1: フランス軍5 | I1: 連合軍1 | J1: 連合軍2 | K1: 連合軍3 | L1: 連合軍4 | M1: 連合軍5
A2: =B2*100+C2 -> 0 | B2: 0 | C2: 0
A3: =B3*100+C3 -> 20 | B3: 0 | C3: 20
A4: 40 | B4: 0 | C4: 40
A5: 100 | B5: 1 | C5: 0
A6: 120 | B6: 1 | C6: 20
A7: 140 | B7: 1 | C7: 40
A8: 200 | B8: 2 | C8: 0
A9: 220 | B9: 2 | C9: 20
A10: 240 | B10: 2 | C10: 40
A11: 300 | B11: 3 | C11: 0
A12: 320 | B12: 3 | C12: 20
A13: 340 | B13: 3 | C13: 40
A14: 400 | B14: 4 | C14: 0
A15: 420 | B15: 4 | C15: 20
A16: 440 | B16: 4 | C16: 40
A17: 500 | B17: 5 | C17: 0
A18: 520 | B18: 5 | C18: 20
A19: 540 | B19: 5 | C19: 40
A20: 600 | B20: 6 | C20: 0
A21: 620 | B21: 6 | C21: 20
A22: 640 | B22: 6 | C22: 40
A23: 700 | B23: 7 | C23: 0
A24: 720 | B24: 7 | C24: 20
A25: 740 | B25: 7 | C25: 40
A26: 800 | B26: 8 | C26: 0
A27: 820 | B27: 8 | C27: 20
A28: 840 | B28: 8 | C28: 40
A29: 900 | B29: 9 | C29: 0
A30: 920 | B30: 9 | C30: 20
A31: 940 | B31: 9 | C31: 40
A32: 1000 | B32: 10 | C32: 0
A33: 1020 | B33: 10 | C33: 20
A34: 1040 | B34: 10 | C34: 40
A35: 1100 | B35: 11 | C35: 0
A36: 1120 | B36: 11 | C36: 20
A37: 1140 | B37: 11 | C37: 40
A38: 1200 | B38: 12 | C38: 0
A39: 1220 | B39: 12 | C39: 20
A40: 1240 | B40: 12 | C40: 40
A41: 1300 | B41: 13 | C41: 0
A42: 1320 | B42: 13 | C42: 20
A43: 1340 | B43: 13 | C43: 40
A44: 1400 | B44: 14 | C44: 0
A45: 1420 | B45: 14 | C45: 20
A46: 1440 | B46: 14 | C46: 40
A47: 1500 | B47: 15 | C47: 0
A48: 1520 | B48: 15 | C48: 20
A49: 1540 | B49: 15 | C49: 40
A50: 1600 | B50: 16 | C50: 0
A51: 1620 | B51: 16 | C51: 20
A52: 1640 | B52: 16 | C52: 40
A53: 1700 | B53: 17 | C53: 0
A54: 1720 | B54: 17 | C54: 20
A55: 1740 | B55: 17 | C55: 40
A56: 1800 | B56: 18 | C56: 0
A57: 1820 | B57: 18 | C57: 20
A58: 1840 | B58: 18 | C58: 40
A59: 1900 | B59: 19 | C59: 0
A60: 1920 | B60: 19 | C60: 20
A61: 1940 | B61: 19 | C61: 40
A62: 2000 | B62: 20 | C62: 0
A63: 2020 | B63: 20 | C63: 20
A64: 2040 | B64: 20 | C64: 40
A65: 2100 | B65: 21 | C65: 0
A66: 2120 | B66: 21 | C66: 20
A67: =B67*100+C67 -> 2140 | B67: 21 | C67: 40
A68: 2200 | B68: 22 | C68: 0
A69: 2220 | B69: 22 | C69: 20
A70: 2240 | B70: 22 | C70: 40
A71: 2300 | B71: 23 | C71: 0
A72: 2320 | B72: 23 | C72: 20
A73: 2340 | B73: 23 | C73: 40

Sheet 部隊別増援
A1: フランス軍 | B1: 1600 | D1: 1620 | F1: 1700 | H1: 1720 | J1: 1740
A2: 1 | B2: 1st Gr | D2: 17th Light | E2: * | F2: 40th Line | G2: * | H2: 1st Ch | I2: * | J2: 88th Line | K2: *
A3: 2 | B3: 2nd Gr | D3: 34th Line | E3: * | F3: 64th Line | G3: * | H3: 13th Ch | I3: *
A4: 3 | B4: 9th Hu | C4: * | D4: 26th Light | E4: * | F4: 3rd Line | G4: * | H4: 21th Ch | I4: *
A5: 4 | B5: 10th Hu | C5: * | D5: 75th Line | E5: * | F5: 18th Line | G5: *
A6: 5 | B6: Lannes | C6: * | F6: Corse Bn | G6: *
A7: 6 | B7: Murat | C7: * | F7: Po Bn | G7: *
A8: 7 | F8: 3rd Gr | G8: *
A9: 8 | F9: 4th Gr | G9: *
A10: 9
A11: 10
A12: 連合軍
A13: 1
A14: 2
A15: 3
A16: 4
A17: 5
A18: 6
A19: 7
A20: 8
A21: 9
A22: 10

Sheet 部隊別損失
A1: フランス軍
A2: 1 | B2: 0 | C2: 0 | D2: 0 | E2: 0 | F2: 0 | G2: 0 | H2: 0 | I2: 0
A3: 2 | B3: 0 | C3: 0 | D3: 0 | E3: 0 | F3: 0 | G3: 0 | H3: 0 | I3: 0
A4: 3 | B4: 0 | C4: 0 | D4: 0 | E4: 0 | F4: 0 | G4: 0 | H4: 0 | I4: 0
A5: 4 | B5: 0 | C5: 0 | D5: 0 | E5: 0 | F5: 0 | G5: 0 | H5: 0 | I5: 0
A6: 5 | B6: 0 | C6: 0 | D6: 0 | E6: 0 | F6: 0 | G6: 0 | H6: 0 | I6: 0
A7: 6 | B7: 0 | C7: 0 | D7: 0 | E7: 0 | F7: 0 | G7: 0 | H7: 0 | I7: 0
A8: 7 | B8: 0 | C8: 0 | D8: 0 | E8: 0 | F8: 0 | G8: 0 | H8: 0 | I8: 0
A9: 8 | B9: 0 | C9: 0 | D9: 0 | E9: 0 | F9: 0 | G9: 0 | H9: 0 | I9: 0
A10: 9 | B10: 0 | C10: 0 | D10: 0 | E10: 0 | F10: 0 | G10: 0 | H10: 0 | I10: 0
A11: 10 | B11: 0 | C11: 0 | D11: 0 | E11: 0 | F11: 0 | G11: 0 | H11: 0 | I11: 0
A12: 連合軍 | B12: 0 | C12: 0 | D12: 0 | E12: 0 | F12: 0 | G12: 0 | H12: 0 | I12: 0
A13: 1 | B13: 0 | C13: 0 | D13: 0 | E13: 0 | F13: 0 | G13: 0 | H13: 0 | I13: 0
A14: 2 | B14: 0 | C14: 0 | D14: 0 | E14: 0 | F14: 0 | G14: 0 | H14: 0 | I14: 0
A15: 3 | B15: 0 | C15: 0 | D15: 0 | E15: 0 | F15: 0 | G15: 0 | H15: 0 | I15: 0
A16: 4 | B16: 0 | C16: 0 | D16: 0 | E16: 0 | F16: 0 | G16: 0 | H16: 0 | I16: 0
A17: 5 | B17: 0 | C17: 0 | D17: 0 | E17: 0 | F17: 0 | G17: 0 | H17: 0 | I17: 0
A18: 6 | B18: 0 | C18: 0 | D18: 0 | E18: 0 | F18: 0 | G18: 0 | H18: 0 | I18: 0
A19: 7 | B19: 0 | C19: 0 | D19: 0 | E19: 0 | F19: 0 | G19: 0 | H19: 0 | I19: 0
A20: 8 | B20: 0 | C20: 0 | D20: 0 | E20: 0 | F20: 0 | G20: 0 | H20: 0 | I20: 0
A21: 9 | B21: 0 | C21: 0 | D21: 0 | E21: 0 | F21: 0 | G21: 0 | H21: 0 | I21: 0
A22: 10 | B22: 0 | C22: 0 | D22: 0 | E22: 0 | F22: 0 | G22: 0 | H22: 0 | I22: 0

Sheet 射撃結果表
A1: 0 | B1: 0 | C1: 0 | D1: 0 | E1: 0 | F1: 0 | G1: 0 | H1: 0 | I1: 0 | J1: 0 | K1: 1 | L1: 1 | M1: 1 | N1: 1 | O1: 2 | P1: 2
A2: 0 | B2: 0 | C2: 0 | D2: 0 | E2: 0 | F2: 0 | G2: 0 | H2: 0 | I2: 0 | J2: 0 | K2: 1 | L2: 1 | M2: 1 | N2: 1 | O2: 2 | P2: 2
A3: 0 | B3: 0 | C3: 0 | D3: 0 | E3: 0 | F3: 0 | G3: 0 | H3: 0 | I3: 0 | J3: 1 | K3: 1 | L3: 1 | M3: 1 | N3: 1 | O3: 2 | P3: 2
A4: 0 | B4: 0 | C4: 0 | D4: 0 | E4: 0 | F4: 0 | G4: 0 | H4: 0 | I4: 0 | J4: 1 | K4: 1 | L4: 1 | M4: 1 | N4: 1 | O4: 2 | P4: 2
A5: 0 | B5: 0 | C5: 0 | D5: 0 | E5: 0 | F5: 0 | G5: 0 | H5: 0 | I5: 0 | J5: 1 | K5: 1 | L5: 1 | M5: 1 | N5: 2 | O5: 2 | P5: 2
A6: 0 | B6: 0 | C6: 0 | D6: 0 | E6: 0 | F6: 0 | G6: 0 | H6: 0 | I6: 0 | J6: 1 | K6: 1 | L6: 1 | M6: 1 | N6: 2 | O6: 2 | P6: 2
A7: 0 | B7: 0 | C7: 0 | D7: 0 | E7: 0 | F7: 0 | G7: 0 | H7: 0 | I7: 0 | J7: 1 | K7: 1 | L7: 1 | M7: 1 | N7: 2 | O7: 2 | P7: 2
A8: 0 | B8: 0 | C8: 0 | D8: 0 | E8: 0 | F8: 0 | G8: 0 | H8: 0 | I8: 1 | J8: 1 | K8: 1 | L8: 1 | M8: 1 | N8: 2 | O8: 2 | P8: 2
A9: 0 | B9: 0 | C9: 0 | D9: 0 | E9: 0 | F9: 0 | G9: 0 | H9: 0 | I9: 1 | J9: 1 | K9: 1 | L9: 1 | M9: 2 | N9: 2 | O9: 2 | P9: 2
A10: 0 | B10: 0 | C10: 0 | D10: 0 | E10: 0 | F10: 0 | G10: 0 | H10: 0 | I10: 1 | J10: 1 | K10: 1 | L10: 1 | M10: 2 | N10: 2 | O10: 2 | P10: 2
A11: 0 | B11: 0 | C11: 0 | D11: 0 | E11: 0 | F11: 0 | G11: 0 | H11: 0 | I11: 1 | J11: 1 | K11: 1 | L11: 1 | M11: 2 | N11: 2 | O11: 2 | P11: 2
A12: 0 | B12: 0 | C12: 0 | D12: 0 | E12: 0 | F12: 0 | G12: 0 | H12: 1 | I12: 1 | J12: 1 | K12: 1 | L12: 1 | M12: 2 | N12: 2 | O12: 2 | P12: 3
A13: 0 | B13: 0 | C13: 0 | D13: 0 | E13: 0 | F13: 0 | G13: 0 | H13: 1 | I13: 1 | J13: 1 | K13: 1 | L13: 1 | M13: 2 | N13: 2 | O13: 2 | P13: 3
A14: 0 | B14: 0 | C14: 0 | D14: 0 | E14: 0 | F14: 0 | G14: 0 | H14: 1 | I14: 1 | J14: 1 | K14: 1 | L14: 1 | M14: 2 | N14: 2 | O14: 2 | P14: 3
A15: 0 | B15: 0 | C15: 0 | D15: 0 | E15: 0 | F15: 0 | G15: 1 | H15: 1 | I15: 1 | J15: 1 | K15: 1 | L15: 2 | M15: 2 | N15: 2 | O15: 2 | P15: 3
A16: 0 | B16: 0 | C16: 0 | D16: 0 | E16: 0 | F16: 0 | G16: 1 | H16: 1 | I16: 1 | J16: 1 | K16: 1 | L16: 2 | M16: 2 | N16: 2 | O16: 2 | P16: 3
A17: 0 | B17: 0 | C17: 0 | D17: 0 | E17: 0 | F17: 0 | G17: 1 | H17: 1 | I17: 1 | J17: 1 | K17: 1 | L17: 2 | M17: 2 | N17: 2 | O17: 2 | P17: 3
A18: 0 | B18: 0 | C18: 0 | D18: 0 | E18: 0 | F18: 0 | G18: 1 | H18: 1 | I18: 1 | J18: 1 | K18: 1 | L18: 2 | M18: 2 | N18: 2 | O18: 2 | P18: 3
A19: 0 | B19: 0 | C19: 0 | D19: 0 | E19: 0 | F19: 0 | G19: 1 | H19: 1 | I19: 1 | J19: 1 | K19: 1 | L19: 2 | M19: 2 | N19: 2 | O19: 2 | P19: 3
A20: 0 | B20: 0 | C20: 0 | D20: 0 | E20: 0 | F20: 1 | G20: 1 | H20: 1 | I20: 1 | J20: 1 | K20: 1 | L20: 2 | M20: 2 | N20: 2 | O20: 3 | P20: 3
A21: 0 | B21: 0 | C21: 0 | D21: 0 | E21: 0 | F21: 1 | G21: 1 | H21: 1 | I21: 1 | J21: 1 | K21: 1 | L21: 2 | M21: 2 | N21: 2 | O21: 3 | P21: 3
A22: 0 | B22: 0 | C22: 0 | D22: 0 | E22: 0 | F22: 1 | G22: 1 | H22: 1 | I22: 1 | J22: 1 | K22: 1 | L22: 2 | M22: 2 | N22: 2 | O22: 3 | P22: 3
A23: 0 | B23: 0 | C23: 0 | D23: 0 | E23: 0 | F23: 1 | G23: 1 | H23: 1 | I23: 1 | J23: 1 | K23: 2 | L23: 2 | M23: 2 | N23: 3 | O23: 3 | P23: 3
A24: 0 | B24: 0 | C24: 0 | D24: 0 | E24: 0 | F24: 1 | G24: 1 | H24: 1 | I24: 1 | J24: 1 | K24: 2 | L24: 2 | M24: 2 | N24: 3 | O24: 3 | P24: 3
A25: 0 | B25: 0 | C25: 0 | D25: 0 | E25: 0 | F25: 1 | G25: 1 | H25: 1 | I25: 1 | J25: 1 | K25: 2 | L25: 2 | M25: 2 | N25: 3 | O25: 3 | P25: 3
A26: 0 | B26: 0 | C26: 0 | D26: 0 | E26: 1 | F26: 1 | G26: 1 | H26: 1 | I26: 1 | J26: 1 | K26: 2 | L26: 2 | M26: 3 | N26: 3 | O26: 3 | P26: 3
A27: 0 | B27: 0 | C27: 0 | D27: 0 | E27: 1 | F27: 1 | G27: 1 | H27: 1 | I27: 1 | J27: 1 | K27: 2 | L27: 2 | M27: 3 | N27: 3 | O27: 3 | P27: 3
A28: 0 | B28: 0 | C28: 0 | D28: 0 | E28: 1 | F28: 1 | G28: 1 | H28: 1 | I28: 1 | J28: 2 | K28: 2 | L28: 2 | M28: 3 | N28: 3 | O28: 3 | P28: 3
A29: 0 | B29: 0 | C29: 0 | D29: 1 | E29: 1 | F29: 1 | G29: 1 | H29: 1 | I29: 1 | J29: 2 | K29: 2 | L29: 2 | M29: 3 | N29: 3 | O29: 3 | P29: 4
A30: 0 | B30: 0 | C30: 0 | D30: 1 | E30: 1 | F30: 1 | G30: 1 | H30: 1 | I30: 1 | J30: 2 | K30: 2 | L30: 2 | M30: 3 | N30: 3 | O30: 3 | P30: 4
A31: 0 | B31: 0 | C31: 0 | D31: 1 | E31: 1 | F31: 1 | G31: 1 | H31: 1 | I31: 1 | J31: 2 | K31: 2 | L31: 2 | M31: 3 | N31: 3 | O31: 3 | P31: 4
A32: 0 | B32: 0 | C32: 1 | D32: 1 | E32: 1 | F32: 1 | G32: 1 | H32: 1 | I32: 1 | J32: 2 | K32: 2 | L32: 3 | M32: 3 | N32: 3 | O32: 3 | P32: 4
A33: 0 | B33: 0 | C33: 1 | D33: 1 | E33: 1 | F33: 1 | G33: 1 | H33: 1 | I33: 1 | J33: 2 | K33: 2 | L33: 3 | M33: 3 | N33: 3 | O33: 4 | P33: 4
A34: 0 | B34: 1 | C34: 1 | D34: 1 | E34: 1 | F34: 1 | G34: 1 | H34: 1 | I34: 1 | J34: 2 | K34: 2 | L34: 3 | M34: 3 | N34: 3 | O34: 4 | P34: 4
A35: 1 | B35: 1 | C35: 1 | D35: 1 | E35: 1 | F35: 1 | G35: 1 | H35: 1 | I35: 1 | J35: 2 | K35: 2 | L35: 3 | M35: 3 | N35: 3 | O35: 4 | P35: 5
A36: 1 | B36: 1 | C36: 1 | D36: 1 | E36: 1 | F36: 1 | G36: 1 | H36: 1 | I36: 1 | J36: 2 | K36: 2 | L36: 3 | M36: 3 | N36: 4 | O36: 4 | P36: 5
A37: 1/3 | B37: 1/2.5 | C37: 1/2 | D37: 1/1.5 | E37: 1/1 | F37: 1.5/1 | G37: 2/1 | H37: 2.5/1 | I37: 3/1 | J37: 4/1 | K37: 5/1 | L37: 6/1 | M37: 7/1 | N37: 8/1 | O37: 9/1 | P37: 10/1

Sheet 白兵戦結果表
A1: AR | B1: AD | C1: AD | D1: AD | H1: *2/1 | I1: 3/2 | J1: DD
A2: AR | B2: AD | C2: AD | H2: 1/2 | I2: DD | J2: DD
A3: AR | B3: AD | G3: *2/2 | H3: 0/2 | I3: DD | J3: DD
A4: AR | B4: AD | G4: 3/3 | H4: 0/1* | I4: DD | J4: DD
A5: AD | B5: AD | G5: 2/4 | H5: 1/1* | I5: DD | J5: DD
A6: AD | F6: 0/0* | G6: 3/1 | H6: DD | I6: DD | J6: DD
A7: AD | F7: 2/3 | G7: 0/1* | H7: DD | I7: DD | J7: DD
A8: AD | F8: 0/2 | G8: DD | H8: DD | I8: DD | J8: DD
A9: AD | E9: 1/4 | F9: *2/0 | G9: DD | H9: DD | I9: DD | J9: DD
A10: AD | E10: 2/3 | F10: 1/2 | G10: DD | H10: DD | I10: DD | J10: DD
A11: AD | D11: 0/3 | E11: *0/0 | F11: 0/1 | G11: DD | H11: DD | I11: DD | J11: DD
A12: AD | D12: 1/2 | E12: 1/1* | F12: *2/3 | G12: DD | H12: DD | I12: DD | J12: DD
A13: AD | D13: *2/1 | E13: 2/3* | F13: 1/2* | G13: DD | H13: DD | I13: DD | J13: DD
A14: AD | E14: 3/3 | F14: DD | G14: DD | H14: DD | I14: DD | J14: DD
A15: AD | C15: 1/2 | D15: 0/1* | E15: 0/1 | F15: DD | G15: DD | H15: DD | I15: DD | J15: DR
A16: AD | D16: 1/0 | E16: 1/0 | F16: DD | G16: DD | H16: DD | I16: DD | J16: DR
C17: 1/1 | D17: 3/2 | E17: 2/2* | F17: DD | G17: DD | H17: DD | I17: DD | J17: DR
C18: *2/0 | D18: 1/1 | E18: DD | F18: DD | G18: DD | H18: DD | I18: DD | J18: DR
C19: 0/1* | D19: 2/2* | E19: DD | F19: DD | G19: DD | H19: DD | I19: DD | J19: DR
B20: *2/0 | C20: 1/1 | D20: *1/2 | E20: DD | F20: DD | G20: DD | H20: DD | I20: DR | J20: DR
B21: 2/1* | C21: 2/2* | D21: *1/1 | E21: DD | F21: DD | G21: DD | H21: DD | I21: DR | J21: DR
B22: 2/1 | C22: 3/1 | D22: 0/2* | E22: DD | F22: DD | G22: DD | H22: DD | I22: DR | J22: DR
B23: *1/1 | C23: 0/2 | D23: DD | E23: DD | F23: DD | G23: DD | H23: DD | I23: DR | J23: DR
B24: 1/2 | C24: 2/1 | D24: DD | E24: DD | F24: DD | G24: DD | H24: DD | I24: DR | J24: DR
B25: 1/1 | C25: 1/1* | D25: DD | E25: DD | F25: DD | G25: DD | H25: DD | I25: DR | J25: DR
A26: *0/0 | B26: 0/0* | C26: *2/1 | D26: DD | E26: DD | F26: DD | G26: DD | H26: DD | I26: DR | J26: DR
A27: 1/1 | B27: 2/1 | C27: DD | D27: DD | E27: DD | F27: DD | G27: DD | H27: DD | I27: DR | J27: DR
A28: 1/2* | B28: *1/2 | C28: DD | D28: DD | E28: DD | F28: DD | G28: DD | H28: DD | I28: DR | J28: DR
A29: 0/1 | B29: 2/2 | C29: DD | D29: DD | E29: DD | F29: DD | G29: DD | H29: DD | I29: DR | J29: DR
A30: 1/0* | C30: DD | D30: DD | E30: DD | F30: DD | G30: DD | H30: DR | I30: DR | J30: DR
A31: 0/2 | B31: 1/0* | C31: DD | D31: DD | E31: DD | F31: DD | G31: DD | H31: DR | I31: DR | J31: DR
A32: 2/1* | B32: DD | C32: DD | D32: DD | E32: DD | F32: DD | G32: DR | H32: DR | I32: DR | J32: DS
B33: DD | C33: DD | D33: DD | E33: DD | F33: DD | G33: DR | H33: DR | I33: DR | J33: DS
A34: 2/2 | B34: DD | C34: DD | D34: DD | E34: DD | F34: DD | G34: DR | H34: DR | I34: DR | J34: DS
A35: DD | B35: DD | C35: DD | D35: DD | E35: DD | F35: DR | G35: DR | H35: DR | I35: DR | J35: DS
A36: DD | B36: DD | C36: DD | D36: DD | E36: DD | F36: DR | G36: DR | H36: DR | I36: DS | J36: DS
A37: 1/2 | B37: 1/1 | C37: 1.5/1 | D37: 2/1 | E37: 2.5/1 | F37: 3/1 | G37: 3.5/1 | H37: 4/1 | I37: 4.5/1 | J37: 5/1
A41: space | B41: AD | C41: AR | D41: DD | E41: DR | F41: DS
A42: * | B42: n | C42: / | D42: m | E42: *

Sheet 攻撃係数
A1: 隊形 | D1: 歩兵 | E1: 騎兵 | F1: 砲兵 | H1: 隊形の特殊条件
B2: 1 | C2: 縦隊 | D2: 1 | E2: 1 | F2: 0 | I2: 騎兵種類による補正(99)
B3: 2 | C3: 横隊 | D3: 1 | E3: 99 | F3: 0 | J3: 重騎兵（移動力が１２以下） | K3: 0.5
B4: 3 | C4: 散開隊形 | D4: 0.5 | E4: 0.5 | F4: 0 | J4: 軽騎兵（移動力が１３以上） | K4: 1
B5: 4 | C5: 一般隊形 | D5: 1 | E5: 0.33 | F5: 0 | I5: 騎兵同士の戦い
B6: 5 | C6: 行軍隊形 | D6: 0.25 | E6: 0.25 | F6: 0 | I6: 1 | J6: 重騎兵補正 | K6: 2
B7: 6 | C7: 方陣 | D7: 1 | E7: 0 | F7: 0
B8: 7 | C8: 大隊密集 | D8: 1 | E8: 0 | F8: 0
B9: 8 | C9: 師団密集 | D9: 1 | E9: 0 | F9: 0
B10: 9 | C10: 牽引隊形 | D10: 0 | E10: 0 | F10: 1
B11: 10 | C11: 展開隊形 | D11: 0 | E11: 0 | F11: 1
B12: 11 | C12: 混乱 | D12: 0.5 | E12: 0.5 | F12: 0.5
B13: 12 | C13: 潰走 | D13: 0.33 | E13: 0.25 | F13: 0.33
A15: 騎兵疲労状態 | H15: 騎兵突撃
B16: 1 | C16: 通常 | D16: 1 | I16: 1 | J16: 通常突撃 | K16: 2
B17: 2 | C17: 疲労 | D17: 0.5
B18: 3 | C18: 損耗 | D18: 0.33
A20: 攻撃側の補正
B21: 攻撃方向
B22: 1 | C22: 側面 | D22: 2
B23: 2 | C23: 背面 | D23: 1.5
B24: 地形
B25: 1 | C25: 小川を渡る攻撃 | D25: 0.66
B27: 方陣攻撃の兵科補正
C28: 攻撃側が歩兵 | D28: 1.5
C29: 攻撃側が騎兵 | D29: 0.33

Sheet 突撃補正
B1: 項目 | C1: 補正値 | D1: 自家修正
A2: 攻撃方向
B3: 正面からの騎兵突撃 | C3: 0
B4: 側面からの騎兵突撃 | C4: -12
B5: 背面からの騎兵突撃 | C5: -6
A7: 小川を渡る突撃
B8: 無し | C8: 0
B9: 有り | C9: 6
A11: 騎兵の種類
B12: 下記以外の騎兵による突撃 | C12: 0
B13: 槍騎兵による突撃 | C13: -6
B14: 重騎兵による突撃 | C14: -3
A16: 防御側の隊形
B17: 縦隊 | C17: 0
B18: 横隊 | C18: 3
B19: 散開隊形 | C19: 0
B20: 一般隊形 | C20: 0
B21: 行軍隊形 | C21: 0
B22: 方陣 | C22: 0
B23: 大隊密集 | C23: 3
B24: 師団密集 | C24: 2
B25: 牽引隊形 | C25: 0
B26: 展開隊形 | C26: 0
B27: 混乱 | C27: -3 | D27: -6 | E27: 基本の補正と重複する分を引いて－３
B28: 潰走 | C28: 0

Sheet 戦力補正
B1: 修正値
A2: 戦力比 | B2: 攻撃側 | C2: 防御側
A3: １未満 | B3: -6 | C3: 6
A4: 1 | B4: -3 | C4: 3
A5: 2 | B5: 0 | C5: 0
A6: 3 | B6: 3 | C6: -3
A7: 4 | B7: 6 | C7: -6
A8: 5 | B8: 9 | C8: -9

Sheet 白兵補正
C1: 補正値 | E1: 自家修正前
B2: 項目 | C2: 攻撃側 | D2: 防御側 | E2: 攻撃側 | F2: 防御側
A3: 攻撃方向
B4: 正面からの強襲 | C4: 0 | D4: 0
B5: 側面からの強襲 | C5: 12 | D5: -12
B6: 背面からの強襲 | C6: 6 | D6: -6
A8: 障害地形をまたぐ強襲
B9: 障害地形なし
B10: 登坂による強襲 | C10: -3 | D10: 3
B11: 小川を渡る強襲 | C11: -3 | D11: 3
B12: 登坂と小川の両方 | C12: -6 | D12: 6
A14: 防御側の隊形
B15: 縦隊 | C15: 0 | D15: 0
B16: 横隊 | C16: 0 | D16: -3
B17: 散開隊形 | C17: 0 | D17: -6
B18: 一般隊形 | C18: 0 | D18: 0
B19: 行軍隊形 | C19: 0 | D19: 0
B20: 方陣 | C20: 0 | D20: 0 | E20: 6 | G20: 基本の補正と重複するので０
B21: 大隊密集 | C21: 0 | D21: 0
B22: 師団密集 | C22: 0 | D22: 0
B23: 牽引隊形 | C23: 0 | D23: 0
B24: 展開隊形 | C24: 0 | D24: 0
B25: 混乱 | C25: 3 | D25: 0 | F25: -3 | G25: 基本の補正と重複するので０
B26: 潰走 | C26: 6 | D26: 0 | F26: -6 | G26: 基本の補正と重複するので０

Sheet 補給補正2
A1: タイプ別・大砲別の補給失敗確率基本 | B1: 1 | C1: 2 | D1: 3 | E1: 4 | F1: 5 | G1: 6 | H1: 7 | I1: 8 | J1: 9 | K1: 10 | L1: 11 | M1: 12 | N1: 13 | O1: 14 | P1: 15 | Q1: 16 | R1: 17 | S1: 18 | T1: 19 | U1: 20
A2: pdr | B2: フランス基本 | C2: フランスNap | D2: フランス親衛隊 | E2: オーストリア | F2: ロシア基本 | G2: ロシア近衛 | H2: 旧プロシア基本 | I2: 旧プロシア近衛 | J2: 新プロシア基本 | K2: 新プロシア近衛 | L2: フランス型１ | M2: フランス型２ | N2: オーストリア型１ | O2: オーストリア型２ | P2: イギリス基本 | Q2: イギリス近衛隊 | R2: ポルトガル | S2: スペイン
A3: 12 | B3: 0.07514619883 | C3: 0.04736842105 | D3: 0.01959064327 | E3: 0.07277777778 | F3: 0.1373737374 | G3: 0.1095959596 | H3: 0.1673611111 | I3: 0.1118055556 | J3: 0.1118055556 | K3: 0.08402777778 | L3: 0.1029239766 | M3: 0.1584795322 | N3: 0.1005555556 | O3: 0.1584795322 | S3: 0.1584795322
A4: 9 | P4: 0.1198412698 | Q4: 0.09206349206 | R4: 0.1198412698
A5: 8 | B5: 0.07277777778 | C5: 0.045 | D5: 0.01722222222 | L5: 0.1005555556 | M5: 0.1561111111 | O5: 0.1561111111 | S5: 0.1561111111
A6: 6 | B6: 0.06527777778 | C6: 0.0375 | D6: 0.009722222222 | E6: 0.06377777778 | F6: 0.1455555556 | G6: 0.1177777778 | H6: 0.1471111111 | I6: 0.09155555556 | J6: 0.09155555556 | K6: 0.06377777778 | L6: 0.09305555556 | M6: 0.1486111111 | N6: 0.09155555556 | O6: 0.1486111111 | P6: 0.1118055556 | Q6: 0.08402777778 | R6: 0.1118055556 | S6: 0.1486111111
A7: 6（騎馬） | B7: 0.06527777778 | C7: 0.0375 | D7: 0.009722222222 | E7: 0.1027777778 | F7: 0.1455555556 | G7: 0.1177777778 | H7: 0.1611111111 | I7: 0.1055555556 | J7: 0.1055555556 | K7: 0.07777777778 | L7: 0.09305555556 | M7: 0.1486111111 | N7: 0.1305555556 | O7: 0.1486111111 | P7: 0.108496732 | Q7: 0.08071895425 | R7: 0.108496732 | S7: 0.1486111111
A8: 4 | B8: 0.06377777778 | C8: 0.036 | D8: 0.008222222222 | L8: 0.09155555556 | M8: 0.1471111111 | O8: 0.1471111111 | S8: 0.1471111111
A9: 3 | B9: 0.08777777778 | C9: 0.06 | D9: 0.03222222222 | E9: 0.08777777778 | L9: 0.1155555556 | M9: 0.1711111111 | N9: 0.1155555556 | O9: 0.1711111111 | S9: 0.1711111111

Sheet 隊形補正
B1: 1 | C1: 2 | D1: 3 | E1: 4 | F1: 5 | G1: 6 | H1: 7 | I1: 8 | J1: 9 | K1: 10 | L1: 11 | M1: 12 | N1: 13 | O1: 14 | P1: 15 | Q1: 16 | R1: 17 | S1: 18
A2: pdr | B2: フランス基本 | C2: フランスNap | D2: フランス親衛隊 | E2: オーストリア | F2: ロシア基本 | G2: ロシア近衛 | H2: 旧プロシア基本 | I2: 旧プロシア近衛 | J2: 新プロシア基本 | K2: 新プロシア近衛 | L2: フランス型１ | M2: フランス型２ | N2: オーストリア型１ | O2: オーストリア型２ | P2: イギリス基本 | Q2: イギリス近衛隊 | R2: ポルトガル | S2: スペイン
A3: 12 | B3: 6 | C3: 9 | D3: 15 | E3: 6 | F3: 4 | G3: 8 | H3: 1 | I3: 1 | J3: 3 | K3: 7 | N3: 6 | O3: 3
A4: 9 | P4: 10 | Q4: 14 | R4: 6
A5: 8 | B5: 12 | C5: 15 | D5: 21
A6: 6 | B6: 16 | C6: 18 | D6: 24 | E6: 16 | F6: 16 | G6: 20 | H6: =J6-6 -> 5 | I6: =K6-6 -> 9 | J6: 11 | K6: 15 | L6: 16 | M6: 10 | N6: 16 | O6: 10 | P6: 15 | Q6: 19 | R6: 9 | S6: 6
A7: 6（騎馬） | B7: =B6 -> 16 | C7: =C6 -> 18 | D7: =D6 -> 24 | E7: 18 | F7: =F6 -> 16 | G7: =G6 -> 20 | H7: =J7-6 -> 9 | I7: =K7-6 -> 13 | J7: 15 | K7: 19 | L7: =L6 -> 16 | M7: =M6 -> 10 | N7: 18 | O7: 12 | P7: =P6 -> 15 | Q7: =Q6 -> 19 | R7: =R6 -> 9 | S7: =S6 -> 6
A8: 4 | B8: 26 | C8: 29 | L8: 26 | M8: 20
A9: 3 | B9: 30 | C9: 30 | E9: 30 | L9: 30 | M9: 24 | N9: 30 | O9: 24

Sheet 超有能指揮官
A1: Ｎｏ | B1: 指揮官名 | C1: 射撃補正 | D1: 敵の士気補正
A2: 1 | B2: ナポレオン | C2: 12 | D2: -8
A3: 2 | B3: セナルモン | C3: 9 | D3: -5
A4: 3 | B4: ドルーオ | C4: 9 | D4: -5
